Workbook

Sheet SolCotizacion
A1: Solicitud de Cotización - Dotación Escolar
B3: Versión: 21 | C3: 2018-11-30
A4: Información de la Entidad Compradora
A6: Nombre de la Entidad: | I6: NIT:
A8: Dirección de la Entidad: | I8: Correo de contacto:
A10: Municipio: | I10: Teléfono de contacto:
A12: Nombre funcionario Comprador:
A14: Fecha de inicio estimada: | C14: 2018-12-05
A16: Solicitud de Cotización
B18: Segmento: | F18: Región:
B20: Cantidad de Sedes educativas:
B22: 1
A24: Dirección de entrega | H24: Ciudad | L24: Municipio
A25: Horario en el que se puede entregar (Días y horas de lunes a viernes de 7:00 a.m a 6:00 p.m.) | J25: Requiere Instalada la Dotación Escolar?
A26: Detalle como requiere la instacion
A27: Fecha de entrega | E27: =WORKDAY($C$14,20) -> 2019-01-02 | J27: Agregar filas: | K27: 1 | L27: Agregar | M27: Eliminar
A28: No. | B28: Artículo | C28: Item | D28: Detalle | K28: Cantidad
A29: 1
A33: Gravámenes adicionales*
A35: Gravámenes adicionales (estampillas)
A36: No | B36: Descripción | F36: Porcentaje
A37: 1
D38: Total porcentaje: | F38: =SUM(F37:F37) -> 0
B39: Filas a agregar o eliminar Gravámenes:
B40: 1

Sheet CUADROS (hidden)
A1: Dirección de entrega | H1: Ciudad | L1: Municipio
A2: Horario en el que se puede entregar (Días y horas) | J2: Requiere Instalada la Dotación Escolar?
A3: Detalle como requiere la instacion | E3: =IF(N2="SI","Instalación de tablero y distribución de mobiliario",IF(N2="NO","Entrega en la sede educativa sin instalación","")) -> 
A4: Fecha de entrega | E4: =WORKDAY($C$14,10) -> 1900-01-13 | J4: Agregar filas: | K4: 1 | L4: Agregar | M4: Eliminar
A5: No. | B5: Artículo | C5: Item | D5: Detalle | K5: Cantidad
A6: 1

Sheet ResumenCotizacion
A1: Resumen de Cotización - Dotación Escolar | R1: =F35 -> 0
A4: Información de la Entidad Compradora
A6: Nombre de la Entidad: | I6: NIT:
A8: Dirección de la Entidad: | I8: Correo de contacto:
A10: Municipio: | I10: Teléfono de contacto:
A12: Nombre funcionario Comprador:
A14: Fecha de inicio estimada: | C14: 2018-12-05
A16: Solicitud de Cotización
B18: Segmento: | F18: Región:
A22: Dirección de entrega | H22: Ciudad | L22: Municipio
A23: Horario en el que se puede entregar (Días y horas) | J23: Requiere Instalada la Dotación Escolar?
A24: Detalle como requiere la instacion
A25: Fecha de entrega | E25: =WORKDAY($C$14,20) -> 2019-01-02 | J25: Agregar filas: | K25: 1 | L25: Agregar | M25: Eliminar
A26: No. | B26: Artículo | C26: Item | D26: Detalle | K26: Cantidad | O26: Precio | R26: Gravámenes | U26: Valor
A27: 1
T28: Sub Total | U28: =SUM($U$27:$W$27) -> 0
T29: IVA | U29: =ROUND(U28*0.19,2) -> 0
T30: Valor Total | U30: =SUM(U28:W29) -> 0
A32: Gravámenes adicionales (estampillas)
A33: No | B33: Descripción | F33: Porcentaje
A34: 1
D35: Total porcentaje: | F35: =SUM(F34:F34) -> 0

Sheet LISTAS (hidden)
A1: segmento | B1: MobiliarioEscolarArticulo | C1: MobiliariodeCocinaArticulo | D1: MobiliarioSEDArticulo | E1: MobiliarioEscolarProveedor | F1: MobiliariodeCocinaProveedor | G1: MobiliarioSEDProveedor | H1: MobiliarioSED | I1: MobiliariodeCocina | J1: MobiliarioEscolar | K1: Región1 | L1: Región2 | M1: Región3 | N1: BogotáD.C. | O1: Armenia | P1: Barranquilla | Q1: Bello | R1: BogotáDC | S1: Bucaramanga | T1: Cali | U1: CartagenadeIndias | V1: Chía | W1: Envigado | X1: Facatativá | Y1: Ibagué | Z1: Itagüí | AA1: Jamundí | AB1: Medellín | AC1: Mosquera | AD1: Pereira | AE1: Rionegro | AF1: SantaMarta | AG1: Soacha | AH1: Villavicencio | AI1: Zipaquirá | AJ1: Antioquia | AK1: Apartadó | AL1: Atlántico | AM1: Barrancabermeja | AN1: Bolívar | AO1: Boyacá | AP1: Buenaventura | AQ1: Caldas | AR1: Caquetá | AS1: Cartago | AT1: Casanare | AU1: Cauca | AV1: Cesar | AW1: Ciénaga | AX1: Córdoba | AY1: Cúcuta | AZ1: Cundinamarca | BA1: Dosquebradas | BB1: Duitama | BC1: Florencia | BD1: Floridablanca | BE1: Fusagasugá | BF1: Girardot | BG1: Girón | BH1: GuadalajaraDeBuga | BI1: Huila | BJ1: Ipiales | BK1: LaGuajira | BL1: Lorica | BM1: Magangué | BN1: Magdalena | BO1: Maicao | BP1: Malambo | BQ1: Manizales | BR1: Meta | BS1: Montería | BT1: Nariño | BU1: Neiva | BV1: NorteDeSantander | BW1: Palmira | BX1: Pasto | BY1: Piedecuesta | BZ1: Pitalito | CA1: Popayán | CB1: Putumayo | CC1: Quibdó | CD1: Quindío | CE1: Riohacha | CF1: Risaralda | CG1: Sabaneta | CH1: Sahagún | CI1: SanAndrésDeTumaco | CJ1: Santander | CK1: Sincelejo | CL1: Sogamoso | CM1: Soledad | CN1: Sucre | CO1: Tolima | CP1: Tuluá | CQ1: Tunja | CR1: Turbo | CS1: Uribia | CT1: ValleDelCauca | CU1: Valledupar | CV1: Yopal | CW1: Yumbo | CX1: Amazonas | CY1: Arauca | CZ1: ArchipiélagoDeSanAndrésProvidenciaYSantaCatalina | DA1: Chocó | DB1: Guainía | DC1: Guaviare | DD1: Vaupés | DE1: Vichada | DF1: MobiliarioEscolarAMBIENTE | DG1: MobiliarioEscolarCONJUNTO | DH1: MobiliarioEscolarPRODUCTO | DI1: MobiliarioSEDPRODUCTO | DJ1: MobiliariodeCocinaAMBIENTE | DK1: MobiliariodeCocinaPRODUCTO | DL1: SIInstalacion | DM1: NoInstalacion
A2: Mobiliario Escolar | B2: AMBIENTE | C2: AMBIENTE | D2: PRODUCTO | E2: DOTAESCOL LTDA | F2: DOTAESCOL LTDA | G2: DOTAESCOL LTDA | H2: Bogotá D.C. | I2: Región 1 | J2: Región 1 | K2: Armenia | L2: Antioquia | M2: Amazonas | N2: Bogotá D.C. | O2: Armenia | P2: Barranquilla | Q2: Bello | R2: Bogotá D.C. | S2: Bucaramanga | T2: Cali | U2: Cartagena de Indias | V2: Chía | W2: Envigado | X2: Facatativá | Y2: Ibagué | Z2: Itagüí | AA2: Jamundí | AB2: Medellín | AC2: Mosquera | AD2: Pereira | AE2: Rionegro | AF2: Santa Marta | AG2: Soacha | AH2: Villavicencio | AI2: Zipaquirá | AJ2: Abejorral | AK2: Apartadó | AL2: Baranoa | AM2: Barrancabermeja | AN2: Achí | AO2: Almeida | AP2: Buenaventura | AQ2: Aguadas | AR2: Albania | AS2: Cartago | AT2: Aguazul | AU2: Almaguer | AV2: Aguachica | AW2: Ciénaga | AX2: Ayapel | AY2: Cúcuta | AZ2: Agua de Dios | BA2: Dosquebradas | BB2: Duitama | BC2: Florencia | BD2: Floridablanca | BE2: Fusagasugá | BF2: Girardot | BG2: Girón | BH2: Guadalajara de Buga | BI2: Acevedo | BJ2: Ipiales | BK2: Albania | BL2: Lorica | BM2: Magangué | BN2: Algarrobo | BO2: Maicao | BP2: Malambo | BQ2: Manizales | BR2: Acacías | BS2: Montería | BT2: Albán | BU2: Neiva | BV2: Ábrego | BW2: Palmira | BX2: Pasto | BY2: Piedecuesta | BZ2: Pitalito | CA2: Popayán | CB2: Colón | CC2: Quibdó | CD2: Buenavista | CE2: Riohacha | CF2: Apía | CG2: Sabaneta | CH2: Sahagún | CI2: San Andrés De Tumaco | CJ2: Aguada | CK2: Sincelejo | CL2: Sogamoso | CM2: Soledad | CN2: Buenavista | CO2: Alpujarra | CP2: Tuluá | CQ2: Tunja | CR2: Turbo | CS2: Uribia | CT2: Alcalá | CU2: Valledupar | CV2: Yopal | CW2: Yumba | CX2: El Encanto | CY2: Arauca | CZ2: Providencia y San Andrés | DA2: Acandí | DB2: Barranco Minas | DC2: Calamar | DD2: Carurú | DE2: Cumaribo | DF2: AULA PREESCOLAR | DG2: ALMACENAMIENTO AULA TIM | DH2: ARCHIVADOR GRANDE - DOCUMENTACION | DI2: ASIENTO INFANTIL | DJ2: COMEDOR-COCINA 1 | DK2: Báscula dogital con lector de pie | DL2: Instalación de tablero y distribución de mobiliario
A3: Mobiliario SED | B3: CONJUNTO | C3: PRODUCTO | E3: INDUSTRIAS CRUZ HERMANOS SA | F3: INDUSTRIAS CRUZ HERMANOS SA | G3: INDUSTRIAS CRUZ HERMANOS SA | I3: Región 2 | J3: Región 2 | K3: Barranquilla | L3: Apartadó | M3: Arauca | AJ3: Abriaquí | AL3: Campo de la Cruz | AN3: Altos del Rosario | AO3: Aquitania | AQ3: Anserma | AR3: Belén de los Andaquíes | AT3: Chámeza | AU3: Argelia | AV3: Agustín Codazzi | AX3: Buenavista | AZ3: Albán | BI3: Agrado | BK3: Barrancas | BN3: Aracataca | BR3: Barranca de Upía | BT3: Aldana | BV3: Arboledas | CB3: Mocoa | CD3: Calarcá | CF3: Balboa | CJ3: Albania | CN3: Caimito | CO3: Alvarado | CT3: Andalucía | CX3: La Chorrera | CY3: Arauquita | DA3: Alto Baudó | DB3: Cacahual | DC3: El Retorno | DD3: Mitú | DE3: La Primavera | DF3: AULA PRIMARIA | DG3: ALMACENAMIENTO BILINGÜISMO | DH3: ARCHIVADOR REGIÓN 1 UNIDAD | DI3: BIBLIOBANCO | DJ3: COMEDOR-COCINA 2 | DK3: Carro cubiertero
A4: Mobiliario de Cocina | B4: PRODUCTO | E4: INDUSTRIAS METAL MADERA INMEMA LTDA | F4: INDUSTRIAS METAL MADERA INMEMA LTDA | G4: INDUSTRIAS METAL MADERA INMEMA LTDA | I4: Región 3 | J4: Región 3 | K4: Bello | L4: Atlántico | M4: Archipiélago De San Andrés, Providencia Y Santa Catalina | AJ4: Alejandría | AL4: Candelaria | AN4: Arenal | AO4: Arcabuco | AQ4: Aranzazu | AR4: Cartagena del Chairá | AT4: Hato Corozal | AU4: Balboa | AV4: Astrea | AX4: Canalete | AZ4: Anapoima | BI4: Aipe | BK4: Dibulla | BN4: Ariguaní | BR4: Cabuyaro | BT4: Ancuyá | BV4: Bochalema | CB4: Orito | CD4: Circasia | CF4: Belén de Umbría | CJ4: Aratoca | CN4: Chalán | CO4: Ambalema | CT4: Ansermanuevo | CX4: La Pedrera | CY4: Cravo Norte | DA4: Atrato | DB4: Inírida | DC4: Miraflores y San José del Guaviare | DD4: Pacoa | DE4: Puerto Carreño y Santa Rosalía | DF4: AULA SECUNDARIA | DG4: CUBÍCULOS DOBLES DE TRABAJO SALA DOCENTE | DH4: BANCO DE TRABAJO MANTENIMIENTO | DI4: CARTERLERA INFORMACIÓN INSTITUCIONAL | DJ4: COMEDOR-COCINA 3 | DK4: Carro porta azafates
E5: INVERSIONES GUERFOR SA | F5: RAFAEL BEJARANO GUALDRON | G5: INVERSIONES GUERFOR SA | K5: Bogotá D.C. | L5: Barrancabermeja | M5: Chocó | AJ5: Amagá | AL5: Galapa | AN5: Arjona | AO5: Belén | AQ5: Belalcázar | AR5: Curillo | AT5: La Salina | AU5: Bolívar | AV5: Becerril | AX5: Cereté | AZ5: Anolaima | BI5: Algeciras | BK5: Distracción | BN5: Cerro de San Antonio | BR5: Castilla la Nueva | BT5: Arboleda | BV5: Bucarasica | CB5: Puerto Asís | CD5: Córdoba | CF5: Guática | CJ5: Barbosa | CN5: Coloso | CO5: Anzoátegui | CT5: Argelia | CX5: La Victoria | CY5: Fortul | DA5: Bagadó | DB5: La Guadalupe | DD5: Papunaua | DF5: AULA TIM | DG5: DESCANSO SALA DOCENTE (OPCIONAL) | DH5: BIOMBO | DI5: ESTANTERÍA ALTA | DK5: Carro porta bandejas
E6: JOSE SADY SUAVITA ROJAS | G6: JOSE SADY SUAVITA ROJAS | K6: Bucaramanga | L6: Bolívar | M6: Guainía | AJ6: Amalfi | AL6: Juan de Acosta | AN6: Arroyohondo | AO6: Berbeo | AQ6: Chinchiná | AR6: El Doncello | AT6: Maní | AU6: Buenos Aires | AV6: Bosconia | AX6: Chimá | AZ6: Apulo | BI6: Altamira | BK6: el Molino | BN6: Chivolo | BR6: Cumaral | BT6: Barbacoas | BV6: Cáchira | CB6: Puerto Caicedo | CD6: Filandia | CF6: La Celia | CJ6: Barichara | CN6: Corozal | CO6: Armero Guayabal | CT6: Bolívar | CX6: Leticia | CY6: Puerto Rondón | DA6: Bahía Solano | DB6: Mapiripana | DD6: Taraira y Yavaraté | DF6: BIBLIOTECA BÁSICA 1 | DG6: EXHIBICIÓN | DH6: BUTACO AUXILIAR BIBLIOTECA | DI6: PERCHERO | DK6: Congelador vertical
E7: MANUFACTURAS SUMAPAZ SA | G7: MANUFACTURAS SUMAPAZ SA | K7: Cali | L7: Boyacá | M7: Guaviare | AJ7: Andes | AL7: Luruaco | AN7: Barranco de Loba | AO7: Betéitiva | AQ7: Filadelfia | AR7: El Paujíl | AT7: Monterrey | AU7: Cajibío | AV7: Chimichagua | AX7: Chinú | AZ7: Arbeláez | BI7: Baraya | BK7: Fonseca | BN7: Concordia | BR7: El Calvario | BT7: Belén | BV7: Cácota | CB7: Puerto Guzmán | CD7: Génova | CF7: La Virginia | CJ7: Betulia | CN7: Coveñas | CO7: Ataco | CT7: Bugalagrande | CX7: Mirití – Paraná | CY7: Saravena y Tame | DA7: Bajo Baudó | DB7: Morichal | DF7: BIBLIOTECA BÁSICA 2 | DG7: PUESTO DE COMEDOR | DH7: BUTACO BANCO DE TRABAJO MANTENIMIENTO | DI7: REPISA PERCHERO | DK7: Escabiladero
E8: MUEBLES ROMERO SAS | G8: MUEBLES ROMERO SAS | K8: Cartagena de Indias | L8: Buenaventura | M8: Vaupés | AJ8: Angelópolis | AL8: Manatí | AN8: Calamar | AO8: Boavita | AQ8: La Dorada | AR8: La Montañita | AT8: Nunchía | AU8: Caldono | AV8: Chiriguaná | AX8: Ciénaga de Oro | AZ8: Beltrán | BI8: Campoalegre | BK8: Hatonuevo | BN8: El Banco | BR8: El Castillo | BT8: Buesaco | BV8: Chinácota | CB8: Puerto Leguízamo | CD8: La Tebaida | CF8: Marsella | CJ8: Bolívar | CN8: El Roble | CO8: Cajamarca | CT8: Caicedonia | CX8: Puerto Alegría | DA8: Bojayá | DB8: Pana Pana | DF8: BILINGÜISMO | DG8: PUESTO DE TRABAJO ADMINISTRATIVO | DH8: BUTACO DE LABORATORIO INTEGRADO FÍSICA Y QUÍMICA | DI8: Pupitre preescolar 5 mesas (x5 sillas c/u) | DK8: ESTUFA DE TRES (3) PUESTOS PREPARACION ALIMENTOS
E9: PROVIDER CIA LIMITADA | G9: PROVIDER CIA LIMITADA | K9: Chía | L9: Caldas | M9: Vichada | AJ9: Angostura | AL9: Palmar de Varela | AN9: Cantagallo | AO9: Boyacá | AQ9: La Merced | AR9: Milán | AT9: Orocué | AU9: Caloto | AV9: Curumaní | AX9: Cotorra | AZ9: Bituima | BI9: Colombia | BK9: La Jagua del Pilar | BN9: El Piñón | BR9: El Dorado | BT9: Chachagüí | BV9: Chitagá | CB9: San Francisco | CD9: Montenegro | CF9: Mistrató | CJ9: Cabrera | CN9: Galeras | CO9: Carmen de Apicalá | CT9: Calima | CX9: Puerto Arica | DA9: Carmen del Darién | DB9: Puerto Colombia y San Felipe | DF9: LABORATORIO CIENCIA ARTES PRIMARIA | DG9: PUESTO DE TRABAJO AULA PREESCOLAR | DH9: BUTACO LABORATORIO PRIMARIA CIENCIAS Y ARTES | DI9: Pupitre primaria mesa y silla | DK9: ESTUFA ENANA (1) QUEMADOR PREPARACION ALIMENTOS
E10: RAFAEL BEJARANO GUALDRON | G10: RAFAEL BEJARANO GUALDRON | K10: Envigado | L10: Caquetá | M10: Otro | AJ10: Anorí | AL10: Piojó | AN10: Cicuco | AO10: Briceño | AQ10: Manzanares | AR10: Morelia | AT10: Paz de Ariporo | AU10: Corinto | AV10: El Copey | AX10: La Apartada | AZ10: Bojacá | BI10: Elías | BK10: Manaure | BN10: El Retén | BR10: Fuente de Oro | BT10: Colón | BV10: Convención | CB10: San Miguel | CD10: Pijao | CF10: Pueblo Rico | CJ10: California | CN10: Guaranda | CO10: Casabianca | CT10: Candelaria | CX10: Puerto Nariño | DA10: Cértegui | DF10: LABORATORIO INTEGRADO FÍSICA QUÍMICA SECUNDARIA | DG10: PUESTO DE TRABAJO AULA PRIMARIA | DH10: CASILLERO ALUMNOS ALMACENAR OBJETOS ALUMNOS | DI10: Pupitre bachillerato mesa y silla | DK10: Estufa enana a gas natural
K11: Facatativá | L11: Cartago | AJ11: Anzá | AL11: Polonuevo | AN11: Clemencia | AO11: Buenavista | AQ11: Marmato | AR11: Puerto Rico | AT11: Pore | AU11: El Tambo | AV11: El Paso | AX11: Los Córdobas | AZ11: Cabrera | BI11: Garzón | BK11: San Juan del Cesar | BN11: Fundación | BR11: Granada | BT11: Consacá | BV11: Cucutilla | CB11: Santiago | CD11: Quimbaya y Salento | CF11: Quinchía | CJ11: Capitanejo | CN11: La Unión | CO11: Chaparral | CT11: Dagua | CX11: Puerto Santander y Tarapacá | DA11: Condoto | DF11: MANTENIMIENTO | DG11: PUESTO DE TRABAJO AULA SECUNDARIA | DH11: CUBÍCULO DOBLE DE TRABAJO BIBLIOTECA | DI11: Puesto universitario diestro | DK11: Estufa enana a gas propano
K12: Ibagué | L12: Casanare | AJ12: Arboletes | AL12: Ponedera | AN12: Córdoba | AO12: Busbanzá | AQ12: Marquetalia | AR12: San José del Fragua | AT12: Recetor | AU12: Florencia | AV12: Gamarra | AX12: Momil | AZ12: Cachipay | BI12: Gigante | BK12: Urumita y Villanueva | BN12: Guamal | BR12: Guamal | BT12: Contadero | BV12: Durania | CB12: Sibundoy | CF12: Santa Rosa de Cabal y Santuario | CJ12: Carcasí | CN12: Los Palmitos | CO12: Coello | CT12: El Águila | DA12: El Cantón del San Pablo | DF12: OFICINA ADMINISTRATIVA | DG12: PUESTO DE TRABAJO AULA TIM | DH12: CUBÍCULO DOBLE DE TRABAJO SALA DOCENTE | DI12: Puesto universitario zurdo | DK12: Estufa industrial 4 fogones a gas natural
K13: Itagüí | L13: Cauca | AJ13: Argelia | AL13: Puerto Colombia | AN13: El Carmen de Bolívar | AO13: Caldas | AQ13: Marulanda | AR13: San Vicente del Caguán | AT13: Sabanalarga | AU13: Guachené | AV13: González | AX13: Montelíbano | AZ13: Cajicá | BI13: Guadalupe | BN13: Nueva Granada | BR13: La Macarena | BT13: Córdoba | BV13: El Carmen | CB13: Valle del Guamuez y Villagarzón | CJ13: Cepitá | CN13: Majagual | CO13: Coyaima | CT13: El Cairo | DA13: El Carmen de Atrato | DF13: PUESTO RECTORÍA | DG13: PUESTO DE TRABAJO BIBLIOTECA OPCIÓN 1 - PREDETERMINADA | DH13: CUERPO CASILLERO DOCENTE ALMACENAMIENTO OBJETOS DOCENTES | DI13: Bibliobanco | DK13: Estufa industrial 4 fogones a gas propano
K14: Jamundí | L14: Cesar | AJ14: Armenia | AL14: Repelón | AN14: El Guamo | AO14: Campohermoso | AQ14: Neira | AR14: Solano | AT14: Sácama | AU14: Guapí | AV14: La Gloria | AX14: Moñitos | AZ14: Caparrapí | BI14: Hobo | BN14: Pedraza | BR14: Lejanías | BT14: Cuaspúd | BV14: El Tarra | CJ14: Cerrito | CN14: Morroa | CO14: Cunday | CT14: El Cerrito | DA14: El Litoral del San Juan | DF14: SALA DOCENTE 1 | DG14: PUESTO DE TRABAJO BIBLIOTECA OPCIÓN 2 | DH14: ESTANTE DE BIBLIOTECA 1,30 MTS ADMINISTRACION Y RESGUARDO DE TEXTOS EN LA BIBLIOTECA | DI14: Tablero | DK14: Estufa industrial 6 fogones
K15: Medellín | L15: Ciénaga | AJ15: Barbosa | AL15: Sabanagrande | AN15: El Peñón | AO15: Cerinza | AQ15: Norcasia | AR15: Solita y Valparaíso | AT15: San Luis de Palenque | AU15: Inzá | AV15: La Jagua De Ibirico | AX15: Planeta Rica | AZ15: Cáqueza | BI15: Íquira | BN15: Pijiño del Carmen | BR15: Mapiripán | BT15: Cumbal | BV15: El Zulia | CJ15: Charalá | CN15: Ovejas | CO15: Dolores | CT15: El Dovio | DA15: Istmina | DF15: SALA DOCENTE 2 | DG15: PUESTO DE TRABAJO BILINGÜISMO 1 | DH15: ESTANTE DE DEPOSITO | DI15: Casilleros estudiantes | DK15: Gramera digital
K16: Mosquera | L16: Córdoba | AJ16: Belmira | AL16: Sabanalarga | AN16: Hatillo de Loba | AO16: Chinavita | AQ16: Pácora | AT16: Támara | AU16: Jambaló | AV16: La Paz | AX16: Pueblo Nuevo | AZ16: Carmen de Carupa | BI16: Isnos | BN16: Pivijay | BR16: Mesetas | BT16: Cumbitara | BV16: Gramalote | CJ16: Charta | CN16: Palmito | CO16: Espinal | CT16: Florida | DA16: Juradó | DG16: PUESTO DE TRABAJO BILINGÜISMO 2 | DH16: MALETERO - SEGURIDAD EN LA BIBLIOTECA | DI16: Catedra mesa y silla | DK16: Horno combi
K17: Pereira | L17: Cúcuta | AJ17: Betania | AL17: Santa Lucía | AN17: Mahates | AO17: Chiquinquirá | AQ17: Palestina | AT17: Tauramena | AU17: La Sierra | AV17: Manaure Balcón del Cesar | AX17: Puerto Escondido | AZ17: Chaguaní | BI17: La Argentina | BN17: Plato | BR17: Puerto Concordia | BT17: El Charco | BV17: Hacarí | CJ17: Chima | CN17: Sampués | CO17: Falan | CT17: Ginebra | DA17: Lloró | DG17: PUESTO DE TRABAJO BILINGÜISMO 3 | DH17: MESA AUXILIAR PUESTO DE TRABAJO PREESCOLAR | DI17: Silla comedor | DK17: Lava vajilla
K18: Rionegro | L18: Cundinamarca | AJ18: Betulia | AL18: Santo Tomás | AN18: Margarita | AO18: Chíquiza | AQ18: Pensilvania | AT18: Trinidad y Villanueva | AU18: La Vega | AV18: Pailitas | AX18: Puerto Libertador | AZ18: Chipaque | BI18: La Plata | BN18: Puebloviejo | BR18: Puerto Gaitán | BT18: El Peñol | BV18: Herrán | CJ18: Chipatá | CN18: San Benito Abad | CO18: Flandes | CT18: Guacarí | DA18: Medio Atrato | DG18: PUESTO DE TRABAJO DOCENTE | DH18: MESA AUXILIAR SALA DOCENTE | DI18: Silla interlocutora | DK18: Licuadora indistrial
K19: Santa Marta | L19: Dosquebradas | AJ19: Briceño | AL19: Suan | AN19: María La Baja | AO19: Chiscas | AQ19: Riosucio | AU19: López de Micay | AV19: Pelaya | AX19: Purísima de la Concepción | AZ19: Choachí | BI19: Nátaga | BN19: Remolino | BR19: Puerto Lleras | BT19: El Rosario | BV19: La Esperanza | CJ19: Cimitarra | CN19: San Juan de Betulia | CO19: Fresno | CT19: La Cumbre | DA19: Medio Baudó | DG19: PUESTO DE TRABAJO LABORATORIO CIENCIAS PRIMARIA | DH19: MESA DE ATENCIÓN RECEPCIÓN | DI19: Archivador horizontal 3 gavetas | DK19: Línea de autoservicio - Baño María
K20: Soacha | L20: Duitama | AJ20: Buriticá | AL20: Tubará y Usiacurí | AN20: Mompós | AO20: Chita | AQ20: Risaralda | AU20: Mercaderes | AV20: Pueblo Bello | AX20: San Andrés de Sotavento | AZ20: Chocontá | BI20: Oporapa | BN20: Sabanas de San Ángel | BR20: Puerto López | BT20: El Tablón de Gómez | BV20: La Playa | CJ20: Concepción | CN20: San Luis de Sincé | CO20: Guamo | CT20: La Unión | DA20: Medio San Juan | DG20: PUESTO DE TRABAJO LABORATORIO CIENCIAS PRIMARIA 1 | DH20: MESA DE ATENCIÓN RECTORÍA | DI20: Archivador aereo | DK20: Línea de autoservicio elèctrica - Baño María
K21: Villavicencio | L21: Florencia | AJ21: Cáceres | AN21: Kmontecristo | AO21: Chitaraque | AQ21: Salamina | AU21: Miranda | AV21: Río de Oro | AX21: San Antero | AZ21: Cogua | BI21: Paicol | BN21: Salamina | BR21: Puerto Rico | BT21: El Tambo | BV21: Labateca | CJ21: Confines | CN21: San Marcos | CO21: Herveo | CT21: La Victoria | DA21: Nóvita | DG21: PUESTO DE TRABAJO LABORATORIO INTEGRADO FÍSICA - QUÍMICA | DH21: MESA DE CAFETERÍA PLEGABLE | DI21: Archivador metalico | DK21: Mantenedor de alimentos
K22: Zipaquirá | L22: Floridablanca | AJ22: Caicedo | AN22: Morales | AO22: Chivatá | AQ22: Samaná | AU22: Morales | AV22: San Alberto | AX22: San Bernardo del Viento | AZ22: Cota | BI22: Palermo | BN22: San Sebastián de Buenavista | BR22: Restrepo | BT22: Francisco Pizarro | BV22: Los Patios | CJ22: Contratación | CN22: San Onofre | CO22: Honda | CT22: Obando | DA22: Nuquí | DG22: PUESTO DE TRABAJO LABORATORIO INTEGRADO FÍSICA - QUÍMICA 1 | DH22: MESA DE CONSULTA TRAPEZOIDAL BIBLIOTECA | DI22: Biombo enfermeria | DK22: Marmita
L23: Fusagasugá | AJ23: Caldas | AN23: Norosí | AO23: Chivor | AQ23: San José | AU23: Padilla | AV23: San Diego | AX23: San Carlos | AZ23: Cucunubá | BI23: Palestina | BN23: San Zenón | BR23: San Carlos de Guaroa | BT23: Funes | BV23: Lourdes | CJ23: Coromoro | CN23: San Pedro | CO23: Icononzo | CT23: Pradera | DA23: Río Iró | DG23: PUESTO DE TRABAJO MANTENIMIENTO | DH23: MESA DE JUNTAS RECTORÍA | DI23: Butaco para laboratorio alto | DK23: MESÓN CON AZAFATES - DISTRIBUCION ALIMENTOS EN EL COMEDOR
L24: Girardot | AJ24: Campamento | AN24: Pinillos | AO24: Ciénega | AQ24: Supía | AU24: Páez | AV24: San Martín y Tamalameque | AX24: San José de Uré | AZ24: El Colegio | BI24: Pital | BN24: Santa Ana | BR24: San Juan de Arama | BT24: Guachucal | BV24: Mutiscua | CJ24: Curití | CN24: Santiago de Tolú | CO24: Lérida | CT24: Restrepo | DA24: Río Quito | DG24: PUESTO DE TRABAJO PREESCOLAR | DH24: MESA DE JUNTAS SALA DOCENTE | DI24: Cartelera de informacion institucional | DK24: MESÓN CON POCETA LAVAR MENAJE COCINA
L25: Girón | AJ25: Cañasgordas | AN25: Regidor | AO25: Cómbita | AQ25: Victoria | AU25: Patía | AX25: San Pelayo | AZ25: El Peñón | BI25: Rivera | BN25: Santa Bárbara de Pinto | BR25: San Juanito | BT25: Guaitarilla | BV25: Ocaña | CJ25: El Carmen de Chucurí | CN25: Sucre y Tolú Viejo | CO25: Líbano | CT25: Riofrío | DA25: Riosucio | DG25: PUESTO DE TRABAJO RECEPCIÓN | DH25: MESA DE TRABAJO BILINGUISMO | DI25: Comedor preescolar | DK25: MESÓN DE TRABAJO CORTAR PICAR TRABAJO EN LA COCINA
L26: Guadalajara De Buga | AJ26: Caracolí | AN26: Río Viejo | AO26: Coper | AQ26: Villamaría y Viterbo | AU26: Piamonte | AX26: Tierralta | AZ26: El Rosal | BI26: Saladoblanco | BN26: Sitionuevo | BR26: San Luis de Cubarral | BT26: Gualmatán | BV26: Pamplona | CJ26: El Guacamayo | CO26: Melgar | CT26: Roldanillo | DA26: San José del Palmar | DG26: PUESTO DE TRABAJO RECTORÍA | DH26: MESA DE TRABAJO CONSULTA LECTURA BIBLIOTECA | DI26: Escritorio y silla aula docente | DK26: Pelador de tuberculos
L27: Huila | AJ27: Caramanta | AN27: San Cristóbal | AO27: Corrales | AU27: Piendamó | AX27: Tuchín y Valencia | AZ27: Fómeque | BI27: San Agustín | BN27: Tenerife | BR27: San Martín | BT27: Iles | BV27: Pamplonita | CJ27: El Peñón | CO27: Murillo | CT27: San Pedro | DA27: Sipí | DG27: SALA DE JUNTAS SALA DOCENTE | DH27: MESA INFANTIL BIBLIOTECA | DI27: Estanteria alta | DK27: Peocesador de alimentos
L28: Ipiales | AJ28: Carepa | AN28: San Estanislao | AO28: Covarachía | AU28: Puerto Tejada | AZ28: Fosca | BI28: Santa María | BN28: Zapayán y Zona Bananera | BR28: Uribe y Vistahermosa | BT28: Imués | BV28: Puerto Santander | CJ28: El Playón | CO28: Natagaima | CT28: Sevilla | DA28: Tadó | DG28: TRABAJO BIPERSONAL BIBLIOTECA | DH28: MESA MODULAR AULA TIM | DI28: Estanteria baja | DK28: Refrigerador vertical
L29: La Guajira | AJ29: Carolina | AN29: San Fernando | AO29: Cubará | AU29: Puracé | AZ29: Funza | BI29: Suaza | BT29: La Cruz | BV29: Ragonvalia | CJ29: Encino | CO29: Ortega | CT29: Toro | DA29: Unguía y Unión Panamericana | DH29: MESA MODULAR CIRCUNFERENCIAS | DI29: Estanteria deposito | DK29: Sarten basculante
L30: Lorica | AJ30: Caucasia | AN30: San Jacinto | AO30: Cucaita | AU30: Rosas | AZ30: Fúquene | BI30: Tarqui | BT30: La Florida | BV30: Salazar | CJ30: Enciso | CO30: Palocabildo | CT30: Trujillo | DH30: MESA MODULAR TIM CON MULTITOMA RETRÁCTIL | DI30: Juguetero
L31: Magangué | AJ31: Chigorodó | AN31: San Jacinto del Cauca | AO31: Cuítiva | AU31: San Sebastián | AZ31: Gachalá | BI31: Tello | BT31: La Llanada | BV31: San Calixto | CJ31: Florián | CO31: Piedras | CT31: Ulloa | DH31: MESA PARA CÓMPUTO RECTOR | DI31: Kit canecas grandes
L32: Magdalena | AJ32: Cisneros | AN32: San Juan Nepomuceno | AO32: El Cocuy | AU32: Santa Rosa | AZ32: Gachancipá | BI32: Teruel | BT32: La Tola | BV32: San Cayetano | CJ32: Galán | CO32: Planadas | CT32: Versalles | DH32: MESÓN LABORATORIO INTEGRADO SECUNDARIA FÍSICA - QUÍMICA | DI32: Kit canecas medianas para aulas de clase
L33: Maicao | AJ33: Ciudad Bolívar | AN33: San Martín de Loba | AO33: El Espino | AU33: Santander de Quilichao | AZ33: Gachetá | BI33: Tesalia | BT33: La Unión | BV33: Santiago | CJ33: Gámbita | CO33: Prado | CT33: Vijes | DH33: MESÓN LABORATORIO PRIMARIA | DI33: Locker sala docentes x 5
L34: Malambo | AJ34: Cocorná | AN34: San Pablo | AO34: Firavitoba | AU34: Silvia | AZ34: Gama | BI34: Timaná | BT34: Leiva | BV34: Sardinata | CJ34: Guaca | CO34: Purificación | CT34: Yotoco y Zarzal | DH34: MÓDULO DE CUATRO (4) CASILLEROS PARA SERVICIOS GENERALES | DI34: Maletero preescolar
L35: Manizales | AJ35: Concepción | AN35: Santa Catalina | AO35: Floresta | AU35: Sotara | AZ35: Granada | BI35: Villavieja y Yaguará | BT35: Linares | BV35: Silos | CJ35: Guadalupe | CO35: Rioblanco | DH35: MUEBLE DE ALMACENAMIENTO AULA CON TRES CAJONES | DI35: Mesa comedor
L36: Meta | AJ36: Concordia | AN36: Santa Rosa | AO36: Gachantivá | AU36: Suárez | AZ36: Guachetá | BT36: Los Andes | BV36: Teorama | CJ36: Guapotá | CO36: Roncesvalles | DH36: MUEBLE DE ALMACENAMIENTO AULA TIM | DI36: Mesa comedor preescolar
L37: Montería | AJ37: Copacabana | AN37: Santa Rosa del Sur | AO37: Gámeza | AU37: Sucre | AZ37: Guaduas | BT37: Magüí | BV37: Tibú | CJ37: Guavatá | CO37: Rovira | DH37: MUEBLE DE ALMACENAMIENTO BIBLIOTECA EQUIPOS AUDIOVISUALES Y ELEMENTOS DE ALTO COSTO O DELICADOS EN LA BIBLIOTECA | DI37: Mesa arte
L38: Nariño | AJ38: Dabeiba | AN38: Simití | AO38: Garagoa | AU38: Timbío | AZ38: Guasca | BT38: Mallama | BV38: Toledo | CJ38: Güepsa | CO38: Saldaña | DH38: MUEBLE DE ALMACENAMIENTO DE LABORATORIO INTEGRADO FÍSICA-QUÍMICA SECUNDARIA | DI38: Mesa tecnologia
L39: Neiva | AJ39: Donmatías | AN39: Soplaviento | AO39: Guacamayas | AU39: Timbiquí | AZ39: Guataquí | BT39: Mosquera | BV39: Villa Caro y Villa del Rosario | CJ39: Hato | CO39: San Antonio | DH39: MUEBLE DE ALMACENAMIENTO DE LABORATORIO PRIMARIA CIENCIAS Y ARTES | DI39: Mesa para aula de informatica
L40: Norte De Santander | AJ40: Ebéjico | AN40: Talaigua Nuevo | AO40: Guateque | AU40: Toribío | AZ40: Guatavita | BT40: Nariño | CJ40: Jesús María | CO40: San Luis | DH40: MUEBLE MÓVIL DE CONTENIDOS AULA TIM | DI40: Mesa para laboratorio
L41: Palmira | AJ41: El Bagre | AN41: Tiquisio | AO41: Guayatá | AU41: Totoró y Villa Rica | AZ41: Guayabal de Síquima | BT41: Olaya Herrera | CJ41: Jordán | CO41: San Sebastián de Mariquita | DH41: MUEBLE MÓVIL DE RECOLECCIÓN DE LIBROS | DI41: Mesa plegable
L42: Pasto | AJ42: El Carmen de Viboral | AN42: Turbaco | AO42: Güicán | AZ42: Guayabetal | BT42: Ospina | CJ42: La Belleza | CO42: Santa Isabel | DH42: MUEBLE MÓVIL LABORATORIO | DI42: Pupitre colaborativo
L43: Piedecuesta | AJ43: El Santuario | AN43: Turbaná | AO43: Iza | AZ43: Gutiérrez | BT43: Policarpa | CJ43: La Paz | CO43: Suárez | DH43: PAPELERA MANEJO DE RESIDUOS SOLIDOS | DI43: Mesa banco de electricidad y electronica
L44: Pitalito | AJ44: Entrerríos | AN44: Villanueva y Zambrano | AO44: Jenesano | AZ44: Jerusalén | BT44: Potosí | CJ44: Landázuri | CO44: Valle de San Juan | DH44: PUESTO DE TRABAJO ESTÁNDAR | DI44: Mesa banca redonda exterior
L45: Popayán | AJ45: Fredonia | AO45: Jericó | AZ45: Junín | BT45: Providencia | CJ45: Lebrija | CO45: Venadillo | DH45: PUNTO ECOLÓGICO EXTERIOR CON TRES CANECAS MANEJO DE RESIDUOS SOLIDOS | DI45: Mesa biblioteca
L46: Putumayo | AJ46: Frontino | AO46: La Capilla | AZ46: La Calera | BT46: Puerres | CJ46: Los Santos | CO46: Villahermosa y Villarrica | DH46: REVISTERO | DI46: Mesa biblioteca infantil
L47: Quibdó | AJ47: Giraldo | AO47: La Uvita | AZ47: La Mesa | BT47: Pupiales | CJ47: Macaravita | DH47: SILLA CAFETERIA - AUDITORIO | DI47: Mesa de juntas 4 puestos con silla
L48: Quindío | AJ48: Girardota | AO48: La Victoria | AZ48: La Palma | BT48: Ricaurte | CJ48: Málaga | DH48: SILLA INTERLOCUTORA BIBLIOTECA | DI48: Mesa de juntas 6 puestos con silla
L49: Riohacha | AJ49: Gómez Plata | AO49: Labranzagrande | AZ49: La Peña | BT49: Roberto Payán | CJ49: Matanza | DH49: SILLA INTERLOCUTORA BIBLIOTECA - BILINGUISMO | DI49: Mesa de juntas 8 puestos con silla
L50: Risaralda | AJ50: Granada | AO50: Macanal | AZ50: La Vega | BT50: Samaniego | CJ50: Mogotes | DH50: SILLA INTERLOCUTORA RECEPCIÓN | DI50: Mesa de juntas 10 puestos con silla
L51: Sabaneta | AJ51: Guadalupe | AO51: Maripí | AZ51: Lenguazaque | BT51: San Bernardo | CJ51: Molagavita | DH51: SILLA INTERLOCUTORA RECTORÍA | DI51: Mesa de juntas 12 puestos con silla
L52: Sahagún | AJ52: Guarne | AO52: Miraflores | AZ52: Machetá | BT52: San Lorenzo | CJ52: Ocamonte | DH52: SILLA INTERLOCUTORA SALA DOCENTE | DI52: Silla comedor primera infancia
L53: San Andrés De Tumaco | AJ53: Guatapé | AO53: Mongua | AZ53: Madrid | BT53: San Pablo | CJ53: Oiba | DH53: SILLA NEUMÁTICA ADMINISTRATIVA | DI53: Silla plástica comedor
L54: Santander | AJ54: Heliconia | AO54: Monguí | AZ54: Manta | BT54: San Pedro de Cartago | CJ54: Onzaga | DH54: SILLA NEUMÁTICA GIRATORIA MONO CONCHA | DI54: Silla plegable
L55: Sincelejo | AJ55: Hispania | AO55: Moniquirá | AZ55: Medina | BT55: Sandoná | CJ55: Palmar | DH55: SILLA NEUMÁTICA GIRATORIA MONO CONCHA AULA TIM | DI55: Sala de espera tres puestos
L56: Sogamoso | AJ56: Ituango | AO56: Motavita | AZ56: Nariño | BT56: Santa Bárbara | CJ56: Palmas del Socorro | DH56: SILLA NEUMÁTICA GIRATORIA MONO CONCHA SALA DOCENTE | DI56: Tandem espera 3 puestos
L57: Soledad | AJ57: Jardín | AO57: Muzo | AZ57: Nemocón | BT57: Santacruz | CJ57: Páramo | DH57: SILLA NEUMÁTICA RECTORÍA CON DESCANSA BRAZOS | DI57: Mesa para laboratorio trafico pesado
L58: Sucre | AJ58: Jericó | AO58: Nobsa | AZ58: Nilo | BT58: Sapuyes | CJ58: Pinchote | DH58: SILLA PUESTO DE TRABAJO INFANTIL BIBLIOTECA | DI58: Mesa plástica comedor
L59: Tolima | AJ59: La Ceja | AO59: Nuevo Colón | AZ59: Nimaima | BT59: Taminango | CJ59: Puente Nacional | DH59: SOFÁ DE DOS (2) PUESTOS | DI59: Mesa internet adultos
L60: Tuluá | AJ60: La Estrella | AO60: Oicatá | AZ60: Nocaima | BT60: Tangua | CJ60: Puerto Parra | DH60: SOFÁ DE TRES (3) PUESTOS LECTURA RELAJADA EN LA BIBLIOTECA Y AULA DE BILINGUISMO | DI60: Casilleros docentes
L61: Tunja | AJ61: La Pintada | AO61: Otanche | AZ61: Pacho | BT61: Túquerres y Yacuanquer | CJ61: Puerto Wilches | DH61: TABLERO MÓVIL DOS CARAS | DI61: Silla mesa biblioteca infantil
L62: Turbo | AJ62: La Unión | AO62: Pachavita | AZ62: Paime | CJ62: Rionegro | DH62: TABLERO PARA MARCADOR BORRABLE | DI62: Silla ergonomica
L63: Uribia | AJ63: Liborina | AO63: Páez | AZ63: Pandi | CJ63: Sabana de Torres | DH63: TÁNDEM CANECAS AULA MANEJO DE RESIDUOS SOLIDOS | DI63: Silla mesa laboratorio
L64: Valle Del Cauca | AJ64: Maceo | AO64: Paipa | AZ64: Paratebueno | CJ64: San Andrés | DH64: TÁNDEM DE ESPERA PARA ESPACIOS EXTERIORES CUBIERTOS | DI64: Silla aula tecnologia
L65: Valledupar | AJ65: Marinilla | AO65: Pajarito | AZ65: Pasca | CJ65: San Benito | DI65: Silla aula artes
L66: Yopal | AJ66: Montebello | AO66: Panqueba | AZ66: Puerto Salgar | CJ66: San Gil | DI66: Sala de espera pequeña
L67: Yumbo | AJ67: Murindó | AO67: Pauna | AZ67: Pulí | CJ67: San Joaquín | DI67: Puff
AJ68: Mutatá | AO68: Paya | AZ68: Quebradanegra | CJ68: San José de Miranda | DI68: Mobiliario urbano silla parque
AJ69: Nariño | AO69: Paz de Río | AZ69: Quetame | CJ69: San Miguel | DI69: Perchero preescolar
AJ70: Nechí | AO70: Pesca | AZ70: Quipile | CJ70: San Vicente de Chucurí | DI70: Mueble locutor auditorio
AJ71: Necoclí | AO71: Pisba | AZ71: Ricaurte | CJ71: Santa Bárbara | DI71: Puesto administrativo en l con silla
AJ72: Olaya | AO72: Puerto Boyacá | AZ72: San Antonio del Tequendama | CJ72: Santa Helena del Opón | DI72: Puesto administrativo sencillo con silla
AJ73: Peñol | AO73: Quípama | AZ73: San Bernardo | CJ73: Simacota | DI73: Puesto de trabajo rectoria con silla
AJ74: Peque | AO74: Ramiriquí | AZ74: San Cayetano | CJ74: Socorro | DI74: Puesto administrativo de recepcion y atencion a usuarios tipo counter con silla.
AJ75: Pueblorrico | AO75: Ráquira | AZ75: San Francisco | CJ75: Suaita | DI75: Mueble tipo tren ludoteca
AJ76: Puerto Berrío | AO76: Rondón | AZ76: San Juan de Rioseco | CJ76: Sucre | DI76: Mueble tipo escalera almacenamiento - ludoteca
AJ77: Puerto Nare | AO77: Saboyá | AZ77: Sasaima | CJ77: Suratá | DI77: Mueble revistero - ludoteca
AJ78: Puerto Triunfo | AO78: Sáchica | AZ78: Sesquilé | CJ78: Tona | DI78: Mueble almaceniamiento con canastillas - ludoteca
AJ79: Remedios | AO79: Samacá | AZ79: Sibaté | CJ79: Valle de San José
AJ80: Retiro | AO80: San Eduardo | AZ80: Silvania | CJ80: Vélez
AJ81: Sabanalarga | AO81: San José de Pare | AZ81: Simijaca | CJ81: Vetas
AJ82: Salgar | AO82: San Luis de Gaceno | AZ82: Sopó | CJ82: Villanueva y Zapatoca
AJ83: San Andrés De Cuerquía | AO83: San Mateo | AZ83: Subachoque
AJ84: San Carlos | AO84: San Miguel de Sema | AZ84: Suesca
AJ85: San Francisco | AO85: San Pablo de Borbur | AZ85: Supatá
AJ86: San Jerónimo | AO86: Santa María | AZ86: Susa
AJ87: San José de la Montaña | AO87: Santa Rosa de Viterbo | AZ87: Sutatausa
AJ88: San Juan de Urabá | AO88: Santa Sofía | AZ88: Tabio
AJ89: San Luis | AO89: Santana | AZ89: Tausa
AJ90: San Pedro de los Milagros | AO90: Sativanorte | AZ90: Tena
AJ91: San Pedro de Urabá | AO91: Sativasur | AZ91: Tenjo
AJ92: San Rafael | AO92: Siachoque | AZ92: Tibacuy
AJ93: San Roque | AO93: Soatá | AZ93: Tibirita
AJ94: San Vicente Ferrer | AO94: Socha | AZ94: Tocaima
AJ95: Santa Bárbara | AO95: Socotá | AZ95: Tocancipá
AJ96: Santa Fé de Antioquia | AO96: Somondoco | AZ96: Topaipí
AJ97: Santa Rosa de Osos | AO97: Sora | AZ97: Ubalá
AJ98: Santo Domingo | AO98: Soracá | AZ98: Ubaque
AJ99: Segovia | AO99: Sotaquirá | AZ99: Une
AJ100: Sonsón | AO100: Susacón | AZ100: Útica
AJ101: Sopetrán | AO101: Sutamarchán | AZ101: Venecia
AJ102: Támesis | AO102: Sutatenza | AZ102: Vergara
AJ103: Tarazá | AO103: Tasco | AZ103: Vianí
AJ104: Tarso | AO104: Tenza | AZ104: Villa De San Diego de Ubaté
AJ105: Titiribí | AO105: Tibaná | AZ105: Villagómez
AJ106: Toledo | AO106: Tibasosa | AZ106: Villapinzón
AJ107: Uramita | AO107: Tinjacá | AZ107: Villeta
AJ108: Urrao | AO108: Tipacoque | AZ108: Viotá
AJ109: Valdivia | AO109: Toca | AZ109: Yacopí y Zipacón
AJ110: Valparaíso | AO110: Togüí
AJ111: Vegachí | AO111: Tópaga
AJ112: Venecia | AO112: Tota
AJ113: Vigía del Fuerte | AO113: Tununguá
AJ114: Yalí | AO114: Turmequé
AJ115: Yarumal | AO115: Tuta
AJ116: Yolombó | AO116: Tutazá
AJ117: Yondó y Zaragoza | AO117: Úmbita
AO118: Ventaquemada
AO119: Villa de Leyva
AO120: Viracachá y Zetaquira

Sheet CSV (hidden)
A1: Tipo (servicio o artÃ­culo) | B1: Cantidad | C1: CÃ³digo de unidad de medida* | D1: PosiciÃ³n | E1: Precio base | F1: Divisa | G1: DescripciÃ³n | H1: MercancÃ­a
A2: item | B2: 10 | C2: Und | E2: "59123,71" | F2: COP | G2: dte01--BUTACO DE LABORATORIO INTEGRADO FÃSICA Y QUÃMICA
A3: item | B3: 10 | C3: Und | E3: "520618,56" | F3: COP | G3: dte01--ARCHIVADOR GRANDE - DOCUMENTACION
A4: item | B4: 10 | C4: Und | E4: "5150360,82" | F4: COP | G4: dte01--AULA PREESCOLAR
A5: item | B5: 10 | C5: Und | E5: "2443711,34" | F5: COP | G5: dte01--ALMACENAMIENTO AULA TIM
A6: item | B6: 1 | C6: Und | E6: "15530247,42" | F6: COP | G6: dte01--IVA

Sheet Cotizacion
A1: Resumen de Cotización - Dotación Escolar | R1: =F35 -> 0
A4: Información de la Entidad Compradora
A6: Nombre de la Entidad: | I6: NIT:
A8: Dirección de la Entidad: | I8: Correo de contacto:
A10: Municipio: | I10: Teléfono de contacto:
A12: Nombre funcionario Comprador:
A14: Fecha de inicio estimada: | C14: 2018-12-05
A16: Solicitud de Cotización
B18: Segmento: | F18: Región:
B19: Seleccione el nombre del proveedor:
A22: Dirección de entrega | H22: Ciudad | L22: Municipio
A23: Horario en el que se puede entregar (Días y horas) | J23: Requiere Instalada la Dotación Escolar?
A24: Detalle como requiere la instacion
A25: Fecha de entrega | E25: =WORKDAY($C$14,20) -> 2019-01-02 | J25: Agregar filas: | K25: 1 | L25: Agregar | M25: Eliminar
A26: No. | B26: Artículo | C26: Item | D26: Detalle | K26: Cantidad | O26: Precio | R26: Precio + Gravámenes | U26: Descuento | V26: Percio con Descuento | Y26: Valor
A27: 1
V28: Sub Total | Y28: =SUM($Y$27:$AA$27) -> 0
V29: IVA | Y29: =ROUND(Y28*0.19,2) -> 0
V30: Valor Total | Y30: =SUM(Y28:AA29) -> 0
A32: Gravámenes adicionales (estampillas)
A33: No | B33: Descripción | F33: Porcentaje
A34: 1
D35: Total porcentaje: | F35: =SUM(F34:F34) -> 0

Sheet Cuadro Totales (hidden)
A1: Precio | D1: Gravámenes | G1: Valor
F3: Sub Total
F4: IVA | G4: =ROUND(G3*0.19,2) -> 0
F5: Valor Total | G5: =SUM(G3:I4) -> 0
A8: Precio | D8: Precio + Gravámenes | G8: Descuento | H8: Percio con Descuento | K8: Valor
H10: Sub Total
H11: IVA | K11: =ROUND(K10*0.19,2) -> 0
H12: Valor Total | K12: =SUM(K10:M11) -> 0

Sheet CantMinimas (hidden)
A1: Segmento | B1: Artículo | C1: Item | D1: CantMinima
A2: Mobiliario de Cocina | B2: AMBIENTE | C2: COMEDOR-COCINA 1 | D2: 1
A3: Mobiliario de Cocina | B3: AMBIENTE | C3: COMEDOR-COCINA 2 | D3: 1
A4: Mobiliario de Cocina | B4: AMBIENTE | C4: COMEDOR-COCINA 3 | D4: 1
A5: Mobiliario de Cocina | B5: PRODUCTO | C5: ESTUFA DE TRES (3) PUESTOS PREPARACION ALIMENTOS | D5: 1
A6: Mobiliario de Cocina | B6: PRODUCTO | C6: ESTUFA ENANA (1) QUEMADOR PREPARACION ALIMENTOS | D6: 1
A7: Mobiliario de Cocina | B7: PRODUCTO | C7: MESÓN CON AZAFATES - DISTRIBUCION ALIMENTOS EN EL COMEDOR | D7: 1
A8: Mobiliario de Cocina | B8: PRODUCTO | C8: MESÓN CON POCETA LAVAR MENAJE COCINA | D8: 1
A9: Mobiliario de Cocina | B9: PRODUCTO | C9: MESÓN DE TRABAJO CORTAR PICAR TRABAJO EN LA COCINA | D9: 1
A10: Mobiliario Escolar | B10: AMBIENTE | C10: AULA PREESCOLAR | D10: 1
A11: Mobiliario Escolar | B11: AMBIENTE | C11: AULA PRIMARIA | D11: 1
A12: Mobiliario Escolar | B12: AMBIENTE | C12: AULA SECUNDARIA | D12: 1
A13: Mobiliario Escolar | B13: AMBIENTE | C13: AULA TIM | D13: 1
A14: Mobiliario Escolar | B14: AMBIENTE | C14: BIBLIOTECA BÁSICA 1 | D14: 1
A15: Mobiliario Escolar | B15: AMBIENTE | C15: BIBLIOTECA BÁSICA 2 | D15: 1
A16: Mobiliario Escolar | B16: AMBIENTE | C16: BILINGÜISMO | D16: 1
A17: Mobiliario Escolar | B17: AMBIENTE | C17: LABORATORIO CIENCIA ARTES PRIMARIA | D17: 1
A18: Mobiliario Escolar | B18: AMBIENTE | C18: LABORATORIO INTEGRADO FÍSICA QUÍMICA SECUNDARIA | D18: 1
A19: Mobiliario Escolar | B19: AMBIENTE | C19: MANTENIMIENTO | D19: 1
A20: Mobiliario Escolar | B20: AMBIENTE | C20: OFICINA ADMINISTRATIVA | D20: 1
A21: Mobiliario Escolar | B21: AMBIENTE | C21: PUESTO RECTORÍA | D21: 1
A22: Mobiliario Escolar | B22: AMBIENTE | C22: SALA DOCENTE 1 | D22: 1
A23: Mobiliario Escolar | B23: AMBIENTE | C23: SALA DOCENTE 2 | D23: 1
A24: Mobiliario Escolar | B24: CONJUNTO | C24: ALMACENAMIENTO AULA TIM | D24: 1
A25: Mobiliario Escolar | B25: CONJUNTO | C25: ALMACENAMIENTO BILINGÜISMO | D25: 1
A26: Mobiliario Escolar | B26: CONJUNTO | C26: CUBÍCULOS DOBLES DE TRABAJO SALA DOCENTE | D26: 2
A27: Mobiliario Escolar | B27: CONJUNTO | C27: DESCANSO SALA DOCENTE (OPCIONAL) | D27: 1
A28: Mobiliario Escolar | B28: CONJUNTO | C28: EXHIBICIÓN | D28: 1
A29: Mobiliario Escolar | B29: CONJUNTO | C29: PUESTO DE COMEDOR | D29: 5
A30: Mobiliario Escolar | B30: CONJUNTO | C30: PUESTO DE TRABAJO ADMINISTRATIVO | D30: 1
A31: Mobiliario Escolar | B31: CONJUNTO | C31: PUESTO DE TRABAJO AULA PREESCOLAR | D31: 1
A32: Mobiliario Escolar | B32: CONJUNTO | C32: PUESTO DE TRABAJO AULA PRIMARIA | D32: 10
A33: Mobiliario Escolar | B33: CONJUNTO | C33: PUESTO DE TRABAJO AULA SECUNDARIA | D33: 10
A34: Mobiliario Escolar | B34: CONJUNTO | C34: PUESTO DE TRABAJO AULA TIM | D34: 7
A35: Mobiliario Escolar | B35: CONJUNTO | C35: PUESTO DE TRABAJO BIBLIOTECA OPCIÓN 1 - PREDETERMINADA | D35: 5
A36: Mobiliario Escolar | B36: CONJUNTO | C36: PUESTO DE TRABAJO BIBLIOTECA OPCIÓN 2 | D36: 6
A37: Mobiliario Escolar | B37: CONJUNTO | C37: PUESTO DE TRABAJO BILINGÜISMO 1 | D37: 2
A38: Mobiliario Escolar | B38: CONJUNTO | C38: PUESTO DE TRABAJO BILINGÜISMO 2 | D38: 1
A39: Mobiliario Escolar | B39: CONJUNTO | C39: PUESTO DE TRABAJO BILINGÜISMO 3 | D39: 1
A40: Mobiliario Escolar | B40: CONJUNTO | C40: PUESTO DE TRABAJO DOCENTE | D40: 1
A41: Mobiliario Escolar | B41: CONJUNTO | C41: PUESTO DE TRABAJO LABORATORIO CIENCIAS PRIMARIA | D41: 1
A42: Mobiliario Escolar | B42: CONJUNTO | C42: PUESTO DE TRABAJO LABORATORIO INTEGRADO FÍSICA - QUÍMICA | D42: 1
A43: Mobiliario Escolar | B43: CONJUNTO | C43: PUESTO DE TRABAJO MANTENIMIENTO | D43: 1
A44: Mobiliario Escolar | B44: CONJUNTO | C44: PUESTO DE TRABAJO PREESCOLAR | D44: 1
A45: Mobiliario Escolar | B45: CONJUNTO | C45: PUESTO DE TRABAJO RECEPCIÓN | D45: 1
A46: Mobiliario Escolar | B46: CONJUNTO | C46: PUESTO DE TRABAJO RECTORÍA | D46: 1
A47: Mobiliario Escolar | B47: CONJUNTO | C47: SALA DE JUNTAS SALA DOCENTE | D47: 1
A48: Mobiliario Escolar | B48: CONJUNTO | C48: TRABAJO BIPERSONAL BIBLIOTECA | D48: 2
A49: Mobiliario Escolar | B49: PRODUCTO | C49: ARCHIVADOR GRANDE - DOCUMENTACION | D49: 1
A50: Mobiliario Escolar | B50: PRODUCTO | C50: BUTACO DE LABORATORIO INTEGRADO FÍSICA Y QUÍMICA | D50: 5
A51: Mobiliario Escolar | B51: PRODUCTO | C51: CASILLERO ALUMNOS ALMACENAR OBJETOS ALUMNOS | D51: 1
A52: Mobiliario Escolar | B52: PRODUCTO | C52: CUERPO CASILLERO DOCENTE ALMACENAMIENTO OBJETOS DOCENTES | D52: 1
A53: Mobiliario Escolar | B53: PRODUCTO | C53: ESTANTE DE BIBLIOTECA 1,30 MTS ADMINISTRACION Y RESGUARDO DE TEXTOS EN LA BIBLIOTECA | D53: 1
A54: Mobiliario Escolar | B54: PRODUCTO | C54: ESTANTE DE DEPOSITO | D54: 1
A55: Mobiliario Escolar | B55: PRODUCTO | C55: MALETERO - SEGURIDAD EN LA BIBLIOTECA | D55: 1
A56: Mobiliario Escolar | B56: PRODUCTO | C56: MUEBLE DE ALMACENAMIENTO AULA CON TRES CAJONES | D56: 1
A57: Mobiliario Escolar | B57: PRODUCTO | C57: MUEBLE DE ALMACENAMIENTO AULA TIM | D57: 1
A58: Mobiliario Escolar | B58: PRODUCTO | C58: MUEBLE DE ALMACENAMIENTO BIBLIOTECA EQUIPOS AUDIOVISUALES Y ELEMENTOS DE ALTO COSTO O DELICADOS EN LA BIBLIOTECA | D58: 1
A59: Mobiliario Escolar | B59: PRODUCTO | C59: MUEBLE MÓVIL DE RECOLECCIÓN DE LIBROS | D59: 1
A60: Mobiliario Escolar | B60: PRODUCTO | C60: PAPELERA MANEJO DE RESIDUOS SOLIDOS | D60: 1
A61: Mobiliario Escolar | B61: PRODUCTO | C61: PUNTO ECOLÓGICO EXTERIOR CON TRES CANECAS MANEJO DE RESIDUOS SOLIDOS | D61: 1
A62: Mobiliario Escolar | B62: PRODUCTO | C62: SOFÁ DE TRES (3) PUESTOS LECTURA RELAJADA EN LA BIBLIOTECA Y AULA DE BILINGUISMO | D62: 1
A63: Mobiliario Escolar | B63: PRODUCTO | C63: TABLERO MÓVIL DOS CARAS | D63: 1
A64: Mobiliario Escolar | B64: PRODUCTO | C64: TABLERO PARA MARCADOR BORRABLE | D64: 1
A65: Mobiliario Escolar | B65: PRODUCTO | C65: TÁNDEM CANECAS AULA MANEJO DE RESIDUOS SOLIDOS | D65: 1
A66: Mobiliario Escolar | B66: PRODUCTO | C66: TÁNDEM DE ESPERA PARA ESPACIOS EXTERIORES CUBIERTOS | D66: 1
A67: Mobiliario Escolar | B67: PRODUCTO | C67: SILLA CAFETERIA - AUDITORIO | D67: 1
A68: Mobiliario Escolar | B68: PRODUCTO | C68: SILLA PUESTO DE TRABAJO DOCENTE | D68: 1
A69: Mobiliario Escolar | B69: PRODUCTO | C69: SILLA PUESTO DE TRABAJO PREESCOLAR | D69: 1
A70: Mobiliario Escolar | B70: PRODUCTO | C70: SILLA PUESTO DE TRABAJO PRIMARIA | D70: 1
A71: Mobiliario Escolar | B71: PRODUCTO | C71: SILLA PUESTO DE TRABAJO SECUNDARIA | D71: 1
A72: Mobiliario Escolar | B72: PRODUCTO | C72: SILLA PUESTO DE TRABAJO INFANTIL BIBLIOTECA | D72: 1
A73: Mobiliario Escolar | B73: PRODUCTO | C73: SILLA NEUMÁTICA ADMINISTRATIVA | D73: 1
A74: Mobiliario Escolar | B74: PRODUCTO | C74: SILLA NEUMÁTICA RECTORÍA CON DESCANSA BRAZOS | D74: 1
A75: Mobiliario Escolar | B75: PRODUCTO | C75: SILLA NEUMÁTICA GIRATORIA MONO CONCHA | D75: 1
A76: Mobiliario Escolar | B76: PRODUCTO | C76: SILLA NEUMÁTICA GIRATORIA MONO CONCHA AULA TIM | D76: 1
A77: Mobiliario Escolar | B77: PRODUCTO | C77: SILLA NEUMÁTICA GIRATORIA MONO CONCHA SALA DOCENTE | D77: 1
A78: Mobiliario Escolar | B78: PRODUCTO | C78: MESA MODULAR CIRCUNFERENCIAS | D78: 1
A79: Mobiliario SED | B79: PRODUCTO | C79: ASIENTO INFANTIL | D79: 1
A80: Mobiliario SED | B80: PRODUCTO | C80: ASIENTO INFANTIL | D80: 1
A81: Mobiliario SED | B81: PRODUCTO | C81: ASIENTO INFANTIL | D81: 1
A82: Mobiliario SED | B82: PRODUCTO | C82: BIBLIOBANCO | D82: 1
A83: Mobiliario SED | B83: PRODUCTO | C83: BIBLIOBANCO | D83: 1
A84: Mobiliario SED | B84: PRODUCTO | C84: BIBLIOBANCO | D84: 1
A85: Mobiliario SED | B85: PRODUCTO | C85: CARTERLERA INFORMACIÓN INSTITUCIONAL | D85: 1
A86: Mobiliario SED | B86: PRODUCTO | C86: CARTERLERA INFORMACIÓN INSTITUCIONAL | D86: 1
A87: Mobiliario SED | B87: PRODUCTO | C87: CARTERLERA INFORMACIÓN INSTITUCIONAL | D87: 1
A88: Mobiliario SED | B88: PRODUCTO | C88: ESTANTERÍA ALTA | D88: 1
A89: Mobiliario SED | B89: PRODUCTO | C89: ESTANTERÍA ALTA | D89: 1
A90: Mobiliario SED | B90: PRODUCTO | C90: ESTANTERÍA ALTA | D90: 1
A91: Mobiliario SED | B91: PRODUCTO | C91: PERCHERO | D91: 1
A92: Mobiliario SED | B92: PRODUCTO | C92: PERCHERO | D92: 1
A93: Mobiliario SED | B93: PRODUCTO | C93: PERCHERO | D93: 1
A94: Mobiliario SED | B94: PRODUCTO | C94: REPISA PERCHERO | D94: 1
A95: Mobiliario SED | B95: PRODUCTO | C95: REPISA PERCHERO | D95: 1
A96: Mobiliario SED | B96: PRODUCTO | C96: REPISA PERCHERO | D96: 1
A97: Mobiliario Escolar | B97: CONJUNTO | C97: PUESTO DE TRABAJO LABORATORIO CIENCIAS PRIMARIA 1 | D97: 1
A98: Mobiliario Escolar | B98: CONJUNTO | C98: PUESTO DE TRABAJO LABORATORIO INTEGRADO FÍSICA - QUÍMICA 1 | D98: 1
A99: Mobiliario Escolar | B99: PRODUCTO | C99: SOFÁ DE DOS (2) PUESTOS | D99: 1
A100: Mobiliario Escolar | B100: PRODUCTO | C100: MÓDULO DE CUATRO (4) CASILLEROS PARA SERVICIOS GENERALES | D100: 1
A101: Mobiliario Escolar | B101: PRODUCTO | C101: REVISTERO | D101: 1
A102: Mobiliario Escolar | B102: PRODUCTO | C102: PUESTO DE TRABAJO ESTÁNDAR | D102: 1
A103: Mobiliario Escolar | B103: PRODUCTO | C103: ARCHIVADOR REGIÓN 1 UNIDAD | D103: 1
A104: Mobiliario Escolar | B104: PRODUCTO | C104: BANCO DE TRABAJO MANTENIMIENTO | D104: 1
A105: Mobiliario Escolar | B105: PRODUCTO | C105: BIOMBO | D105: 1
A106: Mobiliario Escolar | B106: PRODUCTO | C106: BUTACO AUXILIAR BIBLIOTECA | D106: 1
A107: Mobiliario Escolar | B107: PRODUCTO | C107: BUTACO BANCO DE TRABAJO MANTENIMIENTO | D107: 1
A108: Mobiliario Escolar | B108: PRODUCTO | C108: BUTACO LABORATORIO PRIMARIA CIENCIAS Y ARTES | D108: 1
A109: Mobiliario Escolar | B109: PRODUCTO | C109: CUBÍCULO DOBLE DE TRABAJO BIBLIOTECA | D109: 1
A110: Mobiliario Escolar | B110: PRODUCTO | C110: CUBÍCULO DOBLE DE TRABAJO SALA DOCENTE | D110: 1
A111: Mobiliario Escolar | B111: PRODUCTO | C111: MESA AUXILIAR PUESTO DE TRABAJO PREESCOLAR | D111: 1
A112: Mobiliario Escolar | B112: PRODUCTO | C112: MESA AUXILIAR SALA DOCENTE | D112: 1
A113: Mobiliario Escolar | B113: PRODUCTO | C113: MESA DE ATENCIÓN RECEPCIÓN | D113: 1
A114: Mobiliario Escolar | B114: PRODUCTO | C114: MESA DE ATENCIÓN RECTORÍA | D114: 1
A115: Mobiliario Escolar | B115: PRODUCTO | C115: MESA DE CAFETERÍA PLEGABLE | D115: 1
A116: Mobiliario Escolar | B116: PRODUCTO | C116: MESA DE CONSULTA TRAPEZOIDAL BIBLIOTECA | D116: 1
A117: Mobiliario Escolar | B117: PRODUCTO | C117: MESA DE JUNTAS RECTORÍA | D117: 1
A118: Mobiliario Escolar | B118: PRODUCTO | C118: MESA DE JUNTAS SALA DOCENTE | D118: 1
A119: Mobiliario Escolar | B119: PRODUCTO | C119: MESA DE TRABAJO BILINGUISMO | D119: 1
A120: Mobiliario Escolar | B120: PRODUCTO | C120: MESA DE TRABAJO CONSULTA LECTURA BIBLIOTECA | D120: 1
A121: Mobiliario Escolar | B121: PRODUCTO | C121: MESA INFANTIL BIBLIOTECA | D121: 1
A122: Mobiliario Escolar | B122: PRODUCTO | C122: MESA MODULAR AULA TIM | D122: 1
A123: Mobiliario Escolar | B123: PRODUCTO | C123: MESA MODULAR TIM CON MULTITOMA RETRÁCTIL | D123: 1
A124: Mobiliario Escolar | B124: PRODUCTO | C124: MESA PARA CÓMPUTO RECTOR | D124: 1
A125: Mobiliario Escolar | B125: PRODUCTO | C125: MESA PUESTO DE TRABAJO BÁSICA PRIMARIA | D125: 1
A126: Mobiliario Escolar | B126: PRODUCTO | C126: MESA PUESTO DE TRABAJO BÁSICA SECUNDARIA | D126: 1
A127: Mobiliario Escolar | B127: PRODUCTO | C127: MESA PUESTO DE TRABAJO PREESCOLAR | D127: 1
A128: Mobiliario Escolar | B128: PRODUCTO | C128: MESA PUESTO DOCENTE | D128: 1
A129: Mobiliario Escolar | B129: PRODUCTO | C129: MESÓN LABORATORIO INTEGRADO SECUNDARIA FÍSICA - QUÍMICA | D129: 1
A130: Mobiliario Escolar | B130: PRODUCTO | C130: MESÓN LABORATORIO PRIMARIA | D130: 1
A131: Mobiliario Escolar | B131: PRODUCTO | C131: MUEBLE DE ALMACENAMIENTO DE LABORATORIO INTEGRADO FÍSICA-QUÍMICA SECUNDARIA | D131: 1
A132: Mobiliario Escolar | B132: PRODUCTO | C132: MUEBLE DE ALMACENAMIENTO DE LABORATORIO PRIMARIA CIENCIAS Y ARTES | D132: 1
A133: Mobiliario Escolar | B133: PRODUCTO | C133: MUEBLE MÓVIL DE CONTENIDOS AULA TIM | D133: 1
A134: Mobiliario Escolar | B134: PRODUCTO | C134: MUEBLE MÓVIL LABORATORIO | D134: 1
A135: Mobiliario Escolar | B135: PRODUCTO | C135: SILLA INTERLOCUTORA BIBLIOTECA | D135: 1
A136: Mobiliario Escolar | B136: PRODUCTO | C136: SILLA INTERLOCUTORA BIBLIOTECA - BILINGUISMO | D136: 1
A137: Mobiliario Escolar | B137: PRODUCTO | C137: SILLA INTERLOCUTORA RECEPCIÓN | D137: 1
A138: Mobiliario Escolar | B138: PRODUCTO | C138: SILLA INTERLOCUTORA RECTORÍA | D138: 1
A139: Mobiliario Escolar | B139: PRODUCTO | C139: SILLA INTERLOCUTORA SALA DOCENTE | D139: 1
A140: Mobiliario Escolar | B140: PRODUCTO | C140: Pupitre preescolar 5 mesas (x5 sillas c/u) | D140: 1
A141: Mobiliario Escolar | B141: PRODUCTO | C141: Pupitre primaria mesa y silla | D141: 1
A142: Mobiliario Escolar | B142: PRODUCTO | C142: Pupitre bachillerato mesa y silla | D142: 1
A143: Mobiliario Escolar | B143: PRODUCTO | C143: Puesto universitario diestro | D143: 1
A144: Mobiliario Escolar | B144: PRODUCTO | C144: Puesto universitario zurdo | D144: 1
A145: Mobiliario Escolar | B145: PRODUCTO | C145: Bibliobanco | D145: 1
A146: Mobiliario Escolar | B146: PRODUCTO | C146: Tablero | D146: 1
A147: Mobiliario Escolar | B147: PRODUCTO | C147: Casilleros estudiantes | D147: 1
A148: Mobiliario Escolar | B148: PRODUCTO | C148: Catedra mesa y silla | D148: 1
A149: Mobiliario Escolar | B149: PRODUCTO | C149: Silla comedor | D149: 1
A150: Mobiliario Escolar | B150: PRODUCTO | C150: Silla interlocutora | D150: 1
A151: Mobiliario Escolar | B151: PRODUCTO | C151: Archivador horizontal 3 gavetas | D151: 1
A152: Mobiliario Escolar | B152: PRODUCTO | C152: Archivador aereo | D152: 1
A153: Mobiliario Escolar | B153: PRODUCTO | C153: Archivador metalico | D153: 1
A154: Mobiliario Escolar | B154: PRODUCTO | C154: Biombo enfermeria | D154: 1
A155: Mobiliario Escolar | B155: PRODUCTO | C155: Butaco para laboratorio alto | D155: 1
A156: Mobiliario Escolar | B156: PRODUCTO | C156: Cartelera de informacion institucional | D156: 1
A157: Mobiliario Escolar | B157: PRODUCTO | C157: Comedor preescolar | D157: 1
A158: Mobiliario Escolar | B158: PRODUCTO | C158: Escritorio y silla aula docente | D158: 1
A159: Mobiliario Escolar | B159: PRODUCTO | C159: Estanteria alta | D159: 1
A160: Mobiliario Escolar | B160: PRODUCTO | C160: Estanteria baja | D160: 1
A161: Mobiliario Escolar | B161: PRODUCTO | C161: Estanteria deposito | D161: 1
A162: Mobiliario Escolar | B162: PRODUCTO | C162: Juguetero | D162: 1
A163: Mobiliario Escolar | B163: PRODUCTO | C163: Kit canecas grandes | D163: 1
A164: Mobiliario Escolar | B164: PRODUCTO | C164: Kit canecas medianas para aulas de clase | D164: 1
A165: Mobiliario Escolar | B165: PRODUCTO | C165: Locker sala docentes x 5 | D165: 1
A166: Mobiliario Escolar | B166: PRODUCTO | C166: Maletero preescolar | D166: 1
A167: Mobiliario Escolar | B167: PRODUCTO | C167: Mesa comedor | D167: 1
A168: Mobiliario Escolar | B168: PRODUCTO | C168: Mesa comedor preescolar | D168: 1
A169: Mobiliario Escolar | B169: PRODUCTO | C169: Mesa arte | D169: 1
A170: Mobiliario Escolar | B170: PRODUCTO | C170: Mesa tecnologia | D170: 1
A171: Mobiliario Escolar | B171: PRODUCTO | C171: Mesa para aula de informatica | D171: 1
A172: Mobiliario Escolar | B172: PRODUCTO | C172: Mesa para laboratorio | D172: 1
A173: Mobiliario Escolar | B173: PRODUCTO | C173: Mesa plegable | D173: 1
A174: Mobiliario Escolar | B174: PRODUCTO | C174: Pupitre colaborativo | D174: 1
A175: Mobiliario Escolar | B175: PRODUCTO | C175: Mesa banco de electricidad y electronica | D175: 1
A176: Mobiliario Escolar | B176: PRODUCTO | C176: Mesa banca redonda exterior | D176: 1
A177: Mobiliario Escolar | B177: PRODUCTO | C177: Mesa biblioteca | D177: 1
A178: Mobiliario Escolar | B178: PRODUCTO | C178: Mesa biblioteca infantil | D178: 1
A179: Mobiliario Escolar | B179: PRODUCTO | C179: Mesa de juntas 4 puestos con silla | D179: 1
A180: Mobiliario Escolar | B180: PRODUCTO | C180: Mesa de juntas 6 puestos con silla | D180: 1
A181: Mobiliario Escolar | B181: PRODUCTO | C181: Mesa de juntas 8 puestos con silla | D181: 1
A182: Mobiliario Escolar | B182: PRODUCTO | C182: Mesa de juntas 10 puestos con silla | D182: 1
A183: Mobiliario Escolar | B183: PRODUCTO | C183: Mesa de juntas 12 puestos con silla | D183: 1
A184: Mobiliario Escolar | B184: PRODUCTO | C184: Silla comedor primera infancia | D184: 1
A185: Mobiliario Escolar | B185: PRODUCTO | C185: Silla plástica comedor | D185: 1
A186: Mobiliario Escolar | B186: PRODUCTO | C186: Silla plegable | D186: 1
A187: Mobiliario Escolar | B187: PRODUCTO | C187: Sala de espera tres puestos | D187: 1
A188: Mobiliario Escolar | B188: PRODUCTO | C188: Tandem espera 3 puestos | D188: 1
A189: Mobiliario Escolar | B189: PRODUCTO | C189: Mesa para laboratorio trafico pesado | D189: 1
A190: Mobiliario Escolar | B190: PRODUCTO | C190: Mesa plástica comedor | D190: 1
A191: Mobiliario Escolar | B191: PRODUCTO | C191: Mesa internet adultos | D191: 1
A192: Mobiliario Escolar | B192: PRODUCTO | C192: Casilleros docentes | D192: 1
A193: Mobiliario Escolar | B193: PRODUCTO | C193: Silla mesa biblioteca infantil | D193: 1
A194: Mobiliario Escolar | B194: PRODUCTO | C194: Silla ergonomica | D194: 1
A195: Mobiliario Escolar | B195: PRODUCTO | C195: Silla mesa laboratorio | D195: 1
A196: Mobiliario Escolar | B196: PRODUCTO | C196: Silla aula tecnologia | D196: 1
A197: Mobiliario Escolar | B197: PRODUCTO | C197: Silla aula artes | D197: 1
A198: Mobiliario Escolar | B198: PRODUCTO | C198: Sala de espera pequeña | D198: 1
A199: Mobiliario Escolar | B199: PRODUCTO | C199: Puff | D199: 1
A200: Mobiliario Escolar | B200: PRODUCTO | C200: Mobiliario urbano silla parque | D200: 1
... 33 more rows

Sheet Minimos (hidden)
A1: LLAVE | B1: Segmento | C1: Artículo | D1: Región | E1: Item | F1: Detalle | G1: Unidad | H1: DOTAESCOL LTDA | I1: ARCHIVOS FUNCIONALES Y OFICINAS EFICIENTES ZZETA SAS | J1: MANUFACTURAS SUMAPAZ SA | K1: JOSE SADY SUAVITA ROJAS | L1: INVERSIONES GUERFOR SA | M1: INDUSTRIAS CRUZ HERMANOS SA | N1: MUEBLES ROMERO SAS | O1: RAFAEL BEJARANO GUALDRON | P1: GIOVANI RAMIRO PEREZ CHARRIS | Q1: INDUSTRIAS METAL MADERA INMEMA LTDA | R1: PROVIDER CIA LIMITADA | S1: MANUFACTURERA DE GRANDES COCINAS MGC Y CIA SAS | T1: JOSE ALBERTO LUCENA MARTINEZ | U1: JAIME ANDRES FIERRO CIFUENTES | V1: Cantidades | W1: VDOTAESCOL LTDA | X1: VARCHIVOS FUNCIONALES Y OFICINAS EFICIENTES ZZETA SAS | Y1: VMANUFACTURAS SUMAPAZ SA | Z1: VJOSE SADY SUAVITA ROJAS | AA1: VINVERSIONES GUERFOR SA | AB1: VINDUSTRIAS CRUZ HERMANOS SA | AC1: VMUEBLES ROMERO SAS | AD1: VRAFAEL BEJARANO GUALDRON | AE1: VGIOVANI RAMIRO PEREZ CHARRIS | AF1: VINDUSTRIAS METAL MADERA INMEMA LTDA | AG1: VPROVIDER CIA LIMITADA | AH1: VMANUFACTURERA DE GRANDES COCINAS MGC Y CIA SAS | AI1: VJOSE ALBERTO LUCENA MARTINEZ | AJ1: VJAIME ANDRES FIERRO CIFUENTES | AK1: VMinimos | AL1: Gravamenes | AM1: V+G | AN1: Total
A2: Región 2AULA SECUNDARIA | B2: Mobiliario Escolar | C2: AMBIENTE | D2: Región 2 | E2: AULA SECUNDARIA | F2: Aulas secundaria: 40 juegos de puesto de trabajo secundaria, cada juego compuesto por una (1) mesa secundaria y una (1) silla secundaria Una (1) mesa docente Una (1) silla docente Un (1) juego tándem tres (3) canecas Un (1) tablero para marcador borrable Un (1) mueble de almacenamiento | G2: Und | H2: 7014243 | J2: 6541750 | K2: 6970000 | L2: 17257541 | M2: 62638181 | N2: 83834140 | O2: 5890000 | Q2: 7705609.6 | R2: 9411700 | V2: 2 | W2: =$V2*H2 -> 14028486 | X2: =$V2*I2 -> 0 | Y2: 13083500 | Z2: 13940000 | AA2: 34515082 | AB2: 125276362 | AC2: 167668280 | AD2: 11780000 | AE2: 0 | AF2: 15411219.2 | AG2: 18823400 | AH2: 0 | AI2: 0 | AJ2: 0 | AK2: 5890000 | AL2: 0 | AM2: =ROUND(AK2/(1-AL2),2) -> 5890000 | AN2: =ROUND(AM2*V2,2) -> 11780000
W3: =SUM(W$2:W2) -> 14028486 | X3: =SUM(X$2:X2) -> 0 | Y3: =SUM(Y$2:Y2) -> 13083500 | Z3: =SUM(Z$2:Z2) -> 13940000 | AA3: =SUM(AA$2:AA2) -> 34515082 | AB3: =SUM(AB$2:AB2) -> 125276362 | AC3: =SUM(AC$2:AC2) -> 167668280 | AD3: =SUM(AD$2:AD2) -> 11780000 | AE3: =SUM(AE$2:AE2) -> 0 | AF3: =SUM(AF$2:AF2) -> 15411219.2 | AG3: =SUM(AG$2:AG2) -> 18823400 | AH3: =SUM(AH$2:AH2) -> 0 | AI3: =SUM(AI$2:AI2) -> 0 | AJ3: =SUM(AJ$2:AJ2) -> 0 | AN3: =SUM(AN$2:AN2) -> 11780000
W4: =MIN(IF($W3:$AJ3>0,$W3:$AJ3)) -> 11780000 | X4: =MIN(IF($W3:$AJ3>0,$W3:$AJ3)) -> 11780000 | Y4: =MIN(IF($W3:$AJ3>0,$W3:$AJ3)) -> 11780000 | Z4: =MIN(IF($W3:$AJ3>0,$W3:$AJ3)) -> 11780000 | AA4: =MIN(IF($W3:$AJ3>0,$W3:$AJ3)) -> 11780000 | AB4: =MIN(IF($W3:$AJ3>0,$W3:$AJ3)) -> 11780000 | AC4: =MIN(IF($W3:$AJ3>0,$W3:$AJ3)) -> 11780000 | AD4: =MIN(IF($W3:$AJ3>0,$W3:$AJ3)) -> 11780000 | AE4: =MIN(IF($W3:$AJ3>0,$W3:$AJ3)) -> 11780000 | AF4: =MIN(IF($W3:$AJ3>0,$W3:$AJ3)) -> 11780000 | AG4: =MIN(IF($W3:$AJ3>0,$W3:$AJ3)) -> 11780000 | AH4: =MIN(IF($W3:$AJ3>0,$W3:$AJ3)) -> 11780000 | AI4: =MIN(IF($W3:$AJ3>0,$W3:$AJ3)) -> 11780000 | AJ4: =MIN(IF($W3:$AJ3>0,$W3:$AJ3)) -> 11780000 | AN4: =ROUND(AN3*19%,2) -> 2238200
W5: =W3=W4 -> FALSE | X5: =X3=X4 -> FALSE | Y5: =Y3=Y4 -> FALSE | Z5: =Z3=Z4 -> FALSE | AA5: =AA3=AA4 -> FALSE | AB5: =AB3=AB4 -> FALSE | AC5: =AC3=AC4 -> FALSE | AD5: =AD3=AD4 -> TRUE | AE5: =AE3=AE4 -> FALSE | AF5: =AF3=AF4 -> FALSE | AG5: =AG3=AG4 -> FALSE | AH5: =AH3=AH4 -> FALSE | AI5: =AI3=AI4 -> FALSE | AJ5: =AJ3=AJ4 -> FALSE | AN5: =AN3+AN4 -> 14018200

Sheet Consolidado (hidden)
A1: LLAVE | B1: Segmento | C1: Artículo | D1: Región | E1: Item | F1: Detalle | G1: Unidad | H1: DOTAESCOL LTDA | I1: ARCHIVOS FUNCIONALES Y OFICINAS EFICIENTES ZZETA SAS | J1: MANUFACTURAS SUMAPAZ SA | K1: JOSE SADY SUAVITA ROJAS | L1: INVERSIONES GUERFOR SA | M1: INDUSTRIAS CRUZ HERMANOS SA | N1: MUEBLES ROMERO SAS | O1: RAFAEL BEJARANO GUALDRON | P1: GIOVANI RAMIRO PEREZ CHARRIS | Q1: INDUSTRIAS METAL MADERA INMEMA LTDA | R1: PROVIDER CIA LIMITADA | S1: MANUFACTURERA DE GRANDES COCINAS MGC Y CIA SAS | T1: JOSE ALBERTO LUCENA MARTINEZ | U1: JAIME ANDRES FIERRO CIFUENTES
A2: =D2&E2 -> Región 1COMEDOR-COCINA 1 | B2: Mobiliario de Cocina | C2: AMBIENTE | D2: Región 1 | E2: COMEDOR-COCINA 1 | F2: Comedor - cocina seis (6) aulas: 12 mesas de cafetería auditoria cada una con ocho (8) sillas de cafetería auditorio Una (1) estufa enana Un (1) punto ecológico tres (3) canecas Una (1) estufa de tres (3) puestos | G2: Und | H2: 15157000 | M2: 13164542 | O2: 14500000 | Q2: 14460242
A3: Región 2COMEDOR-COCINA 1 | B3: Mobiliario de Cocina | C3: AMBIENTE | D3: Región 2 | E3: COMEDOR-COCINA 1 | F3: Comedor - cocina seis (6) aulas: 12 mesas de cafetería auditoria cada una con ocho (8) sillas de cafetería auditorio Una (1) estufa enana Un (1) punto ecológico tres (3) canecas Una (1) estufa de tres (3) puestos | G3: Und | H3: 15342000 | M3: 13822769 | O3: 14750000 | Q3: 14723077
A4: Región 3COMEDOR-COCINA 1 | B4: Mobiliario de Cocina | C4: AMBIENTE | D4: Región 3 | E4: COMEDOR-COCINA 1 | F4: Comedor - cocina seis (6) aulas: 12 mesas de cafetería auditoria cada una con ocho (8) sillas de cafetería auditorio Una (1) estufa enana Un (1) punto ecológico tres (3) canecas Una (1) estufa de tres (3) puestos | G4: Und | H4: 18969000 | M4: 14744287 | O4: 15750000 | Q4: 15774801
A5: Región 1COMEDOR-COCINA 2 | B5: Mobiliario de Cocina | C5: AMBIENTE | D5: Región 1 | E5: COMEDOR-COCINA 2 | F5: Comedor - cocina 12 aulas: 20 mesas de cafetería auditoria cada una con ocho (8) sillas de cafetería auditorio Una (1) estufa enana Un (1) punto ecológico tres (3) canecas Una (1) estufa de tres (3) puestos | G5: Und | H5: 21125000 | M5: 19386860 | O5: 21299000 | Q5: 21298082
A6: Región 2COMEDOR-COCINA 2 | B6: Mobiliario de Cocina | C6: AMBIENTE | D6: Región 2 | E6: COMEDOR-COCINA 2 | F6: Comedor - cocina 12 aulas: 20 mesas de cafetería auditoria cada una con ocho (8) sillas de cafetería auditorio Una (1) estufa enana Un (1) punto ecológico tres (3) canecas Una (1) estufa de tres (3) puestos | G6: Und | H6: 21430000 | M6: 20356203 | O6: 21700000 | Q6: 21685189
A7: Región 3COMEDOR-COCINA 2 | B7: Mobiliario de Cocina | C7: AMBIENTE | D7: Región 3 | E7: COMEDOR-COCINA 2 | F7: Comedor - cocina 12 aulas: 20 mesas de cafetería auditoria cada una con ocho (8) sillas de cafetería auditorio Una (1) estufa enana Un (1) punto ecológico tres (3) canecas Una (1) estufa de tres (3) puestos | G7: Und | H7: 27305000 | M7: 21713283 | O7: 23300000 | Q7: 23234257
A8: Región 1COMEDOR-COCINA 3 | B8: Mobiliario de Cocina | C8: AMBIENTE | D8: Región 1 | E8: COMEDOR-COCINA 3 | F8: Comedor - cocina 24 aulas: 40 mesas de cafetería auditoria cada una con ocho (8) sillas de cafetería auditorio Una (1) estufa enana Un (1) punto ecológico tres (3) canecas Una (1) estufa de tres (3) puestos | G8: Und | H8: 36045000 | M8: 34942655 | O8: 38400000 | Q8: 38392682
A9: Región 2COMEDOR-COCINA 3 | B9: Mobiliario de Cocina | C9: AMBIENTE | D9: Región 2 | E9: COMEDOR-COCINA 3 | F9: Comedor - cocina 24 aulas: 40 mesas de cafetería auditoria cada una con ocho (8) sillas de cafetería auditorio Una (1) estufa enana Un (1) punto ecológico tres (3) canecas Una (1) estufa de tres (3) puestos | G9: Und | H9: 36650000 | M9: 36689788 | O9: 39000000 | Q9: 39090469
A10: Región 3COMEDOR-COCINA 3 | B10: Mobiliario de Cocina | C10: AMBIENTE | D10: Región 3 | E10: COMEDOR-COCINA 3 | F10: Comedor - cocina 24 aulas: 40 mesas de cafetería auditoria cada una con ocho (8) sillas de cafetería auditorio Una (1) estufa enana Un (1) punto ecológico tres (3) canecas Una (1) estufa de tres (3) puestos | G10: Und | H10: 48145000 | M10: 39135774 | O10: 41900000 | Q10: 41882297
A11: Región 1ESTUFA DE TRES (3) PUESTOS PREPARACION ALIMENTOS | B11: Mobiliario de Cocina | C11: PRODUCTO | D11: Región 1 | E11: ESTUFA DE TRES (3) PUESTOS PREPARACION ALIMENTOS | F11: Estufa lineal de tres (3) quemadores | G11: Und | H11: 4450000 | M11: 1930000 | O11: 1750000 | Q11: 2233000
A12: Región 2ESTUFA DE TRES (3) PUESTOS PREPARACION ALIMENTOS | B12: Mobiliario de Cocina | C12: PRODUCTO | D12: Región 2 | E12: ESTUFA DE TRES (3) PUESTOS PREPARACION ALIMENTOS | F12: Estufa lineal de tres (3) quemadores | G12: Und | H12: 4450000 | M12: 2026500 | O12: 1800000 | Q12: 2273600
A13: Región 3ESTUFA DE TRES (3) PUESTOS PREPARACION ALIMENTOS | B13: Mobiliario de Cocina | C13: PRODUCTO | D13: Región 3 | E13: ESTUFA DE TRES (3) PUESTOS PREPARACION ALIMENTOS | F13: Estufa lineal de tres (3) quemadores | G13: Und | H13: 4650000 | M13: 2161600 | O13: 2100000 | Q13: 2436000
A14: Región 1ESTUFA ENANA (1) QUEMADOR PREPARACION ALIMENTOS | B14: Mobiliario de Cocina | C14: PRODUCTO | D14: Región 1 | E14: ESTUFA ENANA (1) QUEMADOR PREPARACION ALIMENTOS | F14: Estufa enana de un (1) quemador | G14: Und | H14: 1390000 | M14: 1250000 | O14: 1000000 | Q14: 1548800
A15: Región 2ESTUFA ENANA (1) QUEMADOR PREPARACION ALIMENTOS | B15: Mobiliario de Cocina | C15: PRODUCTO | D15: Región 2 | E15: ESTUFA ENANA (1) QUEMADOR PREPARACION ALIMENTOS | F15: Estufa enana de un (1) quemador | G15: Und | H15: 1390000 | M15: 1312500 | O15: 1100000 | Q15: 1576960
A16: Región 3ESTUFA ENANA (1) QUEMADOR PREPARACION ALIMENTOS | B16: Mobiliario de Cocina | C16: PRODUCTO | D16: Región 3 | E16: ESTUFA ENANA (1) QUEMADOR PREPARACION ALIMENTOS | F16: Estufa enana de un (1) quemador | G16: Und | H16: 1500000 | M16: 1400000 | O16: 1300000 | Q16: 1689600
A17: Región 1MESÓN CON AZAFATES - DISTRIBUCION ALIMENTOS EN EL COMEDOR | B17: Mobiliario de Cocina | C17: PRODUCTO | D17: Región 1 | E17: MESÓN CON AZAFATES - DISTRIBUCION ALIMENTOS EN EL COMEDOR | F17: Mesón con azafates | G17: Und | H17: 2795000 | M17: 1325000 | O17: 1700000 | Q17: 1713360
A18: Región 2MESÓN CON AZAFATES - DISTRIBUCION ALIMENTOS EN EL COMEDOR | B18: Mobiliario de Cocina | C18: PRODUCTO | D18: Región 2 | E18: MESÓN CON AZAFATES - DISTRIBUCION ALIMENTOS EN EL COMEDOR | F18: Mesón con azafates | G18: Und | H18: 2800000 | M18: 1391250 | O18: 1750000 | Q18: 1744512
A19: Región 3MESÓN CON AZAFATES - DISTRIBUCION ALIMENTOS EN EL COMEDOR | B19: Mobiliario de Cocina | C19: PRODUCTO | D19: Región 3 | E19: MESÓN CON AZAFATES - DISTRIBUCION ALIMENTOS EN EL COMEDOR | F19: Mesón con azafates | G19: Und | H19: 3000000 | M19: 1484000 | O19: 1860000 | Q19: 1869120
A20: Región 1MESÓN CON POCETA LAVAR MENAJE COCINA | B20: Mobiliario de Cocina | C20: PRODUCTO | D20: Región 1 | E20: MESÓN CON POCETA LAVAR MENAJE COCINA | F20: Mesón con poceta | G20: Und | H20: 2870000 | M20: 2225000 | O20: 1800000 | Q20: 1815715
A21: Región 2MESÓN CON POCETA LAVAR MENAJE COCINA | B21: Mobiliario de Cocina | C21: PRODUCTO | D21: Región 2 | E21: MESÓN CON POCETA LAVAR MENAJE COCINA | F21: Mesón con poceta | G21: Und | H21: 2880000 | M21: 2336250 | O21: 1840000 | Q21: 1848728
A22: Región 3MESÓN CON POCETA LAVAR MENAJE COCINA | B22: Mobiliario de Cocina | C22: PRODUCTO | D22: Región 3 | E22: MESÓN CON POCETA LAVAR MENAJE COCINA | F22: Mesón con poceta | G22: Und | H22: 3060000 | M22: 2492000 | O22: 1950000 | Q22: 1980780
A23: Región 1MESÓN DE TRABAJO CORTAR PICAR TRABAJO EN LA COCINA | B23: Mobiliario de Cocina | C23: PRODUCTO | D23: Región 1 | E23: MESÓN DE TRABAJO CORTAR PICAR TRABAJO EN LA COCINA | F23: Mesón de trabajo cocina | G23: Und | H23: 1583000 | M23: 1672566 | O23: 1130000 | Q23: 1125300
A24: Región 2MESÓN DE TRABAJO CORTAR PICAR TRABAJO EN LA COCINA | B24: Mobiliario de Cocina | C24: PRODUCTO | D24: Región 2 | E24: MESÓN DE TRABAJO CORTAR PICAR TRABAJO EN LA COCINA | F24: Mesón de trabajo cocina | G24: Und | H24: 1588000 | M24: 1756194 | O24: 1150000 | Q24: 1145760
A25: Región 3MESÓN DE TRABAJO CORTAR PICAR TRABAJO EN LA COCINA | B25: Mobiliario de Cocina | C25: PRODUCTO | D25: Región 3 | E25: MESÓN DE TRABAJO CORTAR PICAR TRABAJO EN LA COCINA | F25: Mesón de trabajo cocina | G25: Und | H25: 1788000 | M25: 1873274 | O25: 1230000 | Q25: 1227600
A26: Región 1AULA PREESCOLAR | B26: Mobiliario Escolar | C26: AMBIENTE | D26: Región 1 | E26: AULA PREESCOLAR | F26: Aula pre-escolar: 12 juegos de puesto de trabajo preescolar, cada juego compuesto por una (1) mesa preescolar y tres (3) sillas preescolar Dos (2) mesas auxiliares preescolar Una (1) mesa docente Una (1) silla docente Un (1) juego tándem tres (3) canecas Un (1) tablero para marcador borrable Dos (2) muebles de almacenamiento | G26: Und | H26: 5693638 | J26: 4995850 | K26: 6970000 | L26: 9434387 | M26: 33137444 | N26: 41002262 | O26: 5808100 | Q26: 7446566.4 | R26: 6489200
A27: Región 2AULA PREESCOLAR | B27: Mobiliario Escolar | C27: AMBIENTE | D27: Región 2 | E27: AULA PREESCOLAR | F27: Aula pre-escolar: 12 juegos de puesto de trabajo preescolar, cada juego compuesto por una (1) mesa preescolar y tres (3) sillas preescolar Dos (2) mesas auxiliares preescolar Una (1) mesa docente Una (1) silla docente Un (1) juego tándem tres (3) canecas Un (1) tablero para marcador borrable Dos (2) muebles de almacenamiento | G27: Und | H27: 5831390 | J27: 5125850 | K27: 7250000 | L27: 10885832 | M27: 34794316 | N27: 41722312 | O27: 5890100 | Q27: 7581914.6 | R27: 7194700
A28: Región 3AULA PREESCOLAR | B28: Mobiliario Escolar | C28: AMBIENTE | D28: Región 3 | E28: AULA PREESCOLAR | F28: Aula pre-escolar: 12 juegos de puesto de trabajo preescolar, cada juego compuesto por una (1) mesa preescolar y tres (3) sillas preescolar Dos (2) mesas auxiliares preescolar Una (1) mesa docente Una (1) silla docente Un (1) juego tándem tres (3) canecas Un (1) tablero para marcador borrable Dos (2) muebles de almacenamiento | G28: Und | H28: 8060328 | J28: 6662850 | K28: 7830000 | L28: 20102502 | M28: 37113937 | N28: 43162712 | O28: 6250800 | Q28: 8123524.5 | R28: 12562200
A29: Región 1AULA PRIMARIA | B29: Mobiliario Escolar | C29: AMBIENTE | D29: Región 1 | E29: AULA PRIMARIA | F29: Aulas primaria: 40 juegos de puesto de trabajo primaria, cada juego compuesto por una (1) mesa primaria y una (1) silla primaria Una (1) mesa docente Una (1) silla docente Un (1) juego tándem tres (3) canecas Un (1) tablero para marcador borrable Un (1) mueble de almacenamiento | G29: Und | H29: 6928103 | J29: 6254550 | K29: 6300000 | L29: 14465239 | M29: 59399261 | N29: 82154090 | O29: 5590400 | Q29: 7380630.4 | R29: 8297700
A30: Región 2AULA PRIMARIA | B30: Mobiliario Escolar | C30: AMBIENTE | D30: Región 2 | E30: AULA PRIMARIA | F30: Aulas primaria: 40 juegos de puesto de trabajo primaria, cada juego compuesto por una (1) mesa primaria y una (1) silla primaria Una (1) mesa docente Una (1) silla docente Un (1) juego tándem tres (3) canecas Un (1) tablero para marcador borrable Un (1) mueble de almacenamiento | G30: Und | H30: 6993043 | J30: 6386550 | K30: 6560000 | L30: 16690661 | M30: 62369224 | N30: 83554140 | O30: 5690300 | Q30: 7514769.6 | R30: 9235700
A31: Región 3AULA PRIMARIA | B31: Mobiliario Escolar | C31: AMBIENTE | D31: Región 3 | E31: AULA PRIMARIA | F31: Aulas primaria: 40 juegos de puesto de trabajo primaria, cada juego compuesto por una (1) mesa primaria y una (1) silla primaria Una (1) mesa docente Una (1) silla docente Un (1) juego tándem tres (3) canecas Un (1) tablero para marcador borrable Un (1) mueble de almacenamiento | G31: Und | H31: 10649468 | J31: 8351550 | K31: 7080000 | L31: 30822086 | M31: 66527173 | N31: 86354540 | O31: 6183400 | Q31: 8051587.7 | R31: 15563400
A32: Región 1AULA SECUNDARIA | B32: Mobiliario Escolar | C32: AMBIENTE | D32: Región 1 | E32: AULA SECUNDARIA | F32: Aulas secundaria: 40 juegos de puesto de trabajo secundaria, cada juego compuesto por una (1) mesa secundaria y una (1) silla secundaria Una (1) mesa docente Una (1) silla docente Un (1) juego tándem tres (3) canecas Un (1) tablero para marcador borrable Un (1) mueble de almacenamiento | G32: Und | H32: 6949343 | J32: 6409750 | K32: 6690000 | L32: 14956535 | M32: 59655411 | N32: 82434090 | O32: 5800000 | Q32: 7567986.4 | R32: 8469700
A33: Región 2AULA SECUNDARIA | B33: Mobiliario Escolar | C33: AMBIENTE | D33: Región 2 | E33: AULA SECUNDARIA | F33: Aulas secundaria: 40 juegos de puesto de trabajo secundaria, cada juego compuesto por una (1) mesa secundaria y una (1) silla secundaria Una (1) mesa docente Una (1) silla docente Un (1) juego tándem tres (3) canecas Un (1) tablero para marcador borrable Un (1) mueble de almacenamiento | G33: Und | H33: 7014243 | J33: 6541750 | K33: 6970000 | L33: 17257541 | M33: 62638181 | N33: 83834140 | O33: 5890000 | Q33: 7705609.6 | R33: 9411700
A34: Región 3AULA SECUNDARIA | B34: Mobiliario Escolar | C34: AMBIENTE | D34: Región 3 | E34: AULA SECUNDARIA | F34: Aulas secundaria: 40 juegos de puesto de trabajo secundaria, cada juego compuesto por una (1) mesa secundaria y una (1) silla secundaria Una (1) mesa docente Una (1) silla docente Un (1) juego tándem tres (3) canecas Un (1) tablero para marcador borrable Un (1) mueble de almacenamiento | G34: Und | H34: 10851988 | J34: 8506750 | K34: 7520000 | L34: 31868925 | M34: 66814060 | N34: 86634540 | O34: 6400000 | Q34: 8256012.7 | R34: 15867400
A35: Región 1AULA TIM | B35: Mobiliario Escolar | C35: AMBIENTE | D35: Región 1 | E35: AULA TIM | F35: Aula TIM para 40 usuarios: Siete (7) mesas modulares para tres (3) alumnos Cuarenta (40) sillas giratorias monoconcha Siete (7) mesas modulares con multitoma retráctil para tres (3) alumnos Un (1) tándem tres (3) canecas Un (1) tablero para marcador borrable Dos (2) tableros móviles Ocho (8) muebles de contenidos TIM Dos (2) muebles de almacenamiento aula TIM | G35: Und | H35: 17550842 | J35: 20594300 | K35: 26250000 | L35: 32542883 | M35: 23976503 | N35: 23276448 | O35: 22790400 | Q35: 29536351 | R35: 19294700
A36: Región 2AULA TIM | B36: Mobiliario Escolar | C36: AMBIENTE | D36: Región 2 | E36: AULA TIM | F36: Aula TIM para 40 usuarios: Siete (7) mesas modulares para tres (3) alumnos Cuarenta (40) sillas giratorias monoconcha Siete (7) mesas modulares con multitoma retráctil para tres (3) alumnos Un (1) tándem tres (3) canecas Un (1) tablero para marcador borrable Dos (2) tableros móviles Ocho (8) muebles de contenidos TIM Dos (2) muebles de almacenamiento aula TIM | G36: Und | H36: 17875976 | J36: 20951300 | K36: 27340000 | L36: 37549481 | M36: 25175328 | N36: 23616848 | O36: 23143500 | Q36: 30073364.1 | R36: 22424100
A37: Región 3AULA TIM | B37: Mobiliario Escolar | C37: AMBIENTE | D37: Región 3 | E37: AULA TIM | F37: Aula TIM para 40 usuarios: Siete (7) mesas modulares para tres (3) alumnos Cuarenta (40) sillas giratorias monoconcha Siete (7) mesas modulares con multitoma retráctil para tres (3) alumnos Un (1) tándem tres (3) canecas Un (1) tablero para marcador borrable Dos (2) tableros móviles Ocho (8) muebles de contenidos TIM Dos (2) muebles de almacenamiento aula TIM | G37: Und | H37: 22143606 | J37: 27586300 | K37: 29510000 | L37: 69341374 | M37: 26853683 | N37: 24297348 | O37: 24801200 | Q37: 32221484.1 | R37: 35240900
A38: Región 1BIBLIOTECA BÁSICA 1 | B38: Mobiliario Escolar | C38: AMBIENTE | D38: Región 1 | E38: BIBLIOTECA BÁSICA 1 | F38: Biblioteca básica para 40 usuarios 1: Diez (10) estantes Diez (10) mesas trapezoidales Cuatro (4) cubículos dobles Un (1) sofá de tres (3) puestos 30 sillas interlocutoras 8 sillas giratorias monoconcha Dos (2) revisteros Cinco (5) butacos auxiliares Un (1) mueble móvil de recolección de libros Un (1) tablero móvil Un (1) mueble de almacenamiento biblioteca | G38: Und | H38: 12649027.23 | J38: 15741900 | K38: 13920000 | L38: 34593636 | M38: 18027042 | N38: 17063276 | O38: 16221187.7 | Q38: 20088554.2 | R38: 16104100
A39: Región 2BIBLIOTECA BÁSICA 1 | B39: Mobiliario Escolar | C39: AMBIENTE | D39: Región 2 | E39: BIBLIOTECA BÁSICA 1 | F39: Biblioteca básica para 40 usuarios 1: Diez (10) estantes Diez (10) mesas trapezoidales Cuatro (4) cubículos dobles Un (1) sofá de tres (3) puestos 30 sillas interlocutoras 8 sillas giratorias monoconcha Dos (2) revisteros Cinco (5) butacos auxiliares Un (1) mueble móvil de recolección de libros Un (1) tablero móvil Un (1) mueble de almacenamiento biblioteca | G39: Und | H39: 12815195.45 | J39: 16121900 | K39: 14500000 | L39: 39915734 | M39: 18928394 | N39: 17428276 | O39: 16461755.97 | Q39: 20508358 | R39: 17542800
A40: Región 3BIBLIOTECA BÁSICA 1 | B40: Mobiliario Escolar | C40: AMBIENTE | D40: Región 3 | E40: BIBLIOTECA BÁSICA 1 | F40: Biblioteca básica para 40 usuarios 1: Diez (10) estantes Diez (10) mesas trapezoidales Cuatro (4) cubículos dobles Un (1) sofá de tres (3) puestos 30 sillas interlocutoras 8 sillas giratorias monoconcha Dos (2) revisteros Cinco (5) butacos auxiliares Un (1) mueble móvil de recolección de libros Un (1) tablero móvil Un (1) mueble de almacenamiento biblioteca | G40: Und | H40: 16808691.55 | J40: 22361900 | K40: 15650000 | L40: 73711055 | M40: 20190287 | N40: 18158326 | O40: 17120730.69 | Q40: 21973281.2 | R40: 27701900
A41: Región 1BIBLIOTECA BÁSICA 2 | B41: Mobiliario Escolar | C41: AMBIENTE | D41: Región 1 | E41: BIBLIOTECA BÁSICA 2 | F41: Biblioteca básica para 40 usuarios 2: Diez (10) estantes Ocho (8) mesas rectangulares Cuatro (4) cubículos dobles Un (1) sofá de tres (3) puestos 32 sillas interlocutoras 8 sillas giratorias monoconcha Dos (2) revisteros Cinco (5) butacos auxiliares Un (1) mueble móvil de recolección de libros Un (1) tablero móvil Un (1) mueble de almacenamiento biblioteca | G41: Und | H41: 13675986.98 | J41: 16727600 | K41: 14430000 | L41: 35869955 | M41: 19311491 | N41: 17869276 | O41: 16387192.37 | Q41: 20579140.4 | R41: 16425300
A42: Región 2BIBLIOTECA BÁSICA 2 | B42: Mobiliario Escolar | C42: AMBIENTE | D42: Región 2 | E42: BIBLIOTECA BÁSICA 2 | F42: Biblioteca básica para 40 usuarios 2: Diez (10) estantes Ocho (8) mesas rectangulares Cuatro (4) cubículos dobles Un (1) sofá de tres (3) puestos 32 sillas interlocutoras 8 sillas giratorias monoconcha Dos (2) revisteros Cinco (5) butacos auxiliares Un (1) mueble móvil de recolección de libros Un (1) tablero móvil Un (1) mueble de almacenamiento biblioteca | G42: Und | H42: 13880930.58 | J42: 17109600 | K42: 15030000 | L42: 41388410 | M42: 20277065 | N42: 18234276 | O42: 16631196.38 | Q42: 21007849.2 | R42: 17972200
A43: Región 3BIBLIOTECA BÁSICA 2 | B43: Mobiliario Escolar | C43: AMBIENTE | D43: Región 3 | E43: BIBLIOTECA BÁSICA 2 | F43: Biblioteca básica para 40 usuarios 2: Diez (10) estantes Ocho (8) mesas rectangulares Cuatro (4) cubículos dobles Un (1) sofá de tres (3) puestos 32 sillas interlocutoras 8 sillas giratorias monoconcha Dos (2) revisteros Cinco (5) butacos auxiliares Un (1) mueble móvil de recolección de libros Un (1) tablero móvil Un (1) mueble de almacenamiento biblioteca | G43: Und | H43: 18192641 | J43: 23501600 | K43: 16220000 | L43: 76430596 | M43: 21628870 | N43: 18964326 | O43: 17566457.02 | Q43: 22508462.6 | R43: 28484100
A44: Región 1BILINGÜISMO | B44: Mobiliario Escolar | C44: AMBIENTE | D44: Región 1 | E44: BILINGÜISMO | F44: Bilinguismo para 40 usuarios: Seis (6) estantes de bilingüismo Un (1) revistero Dos (2) tableros móviles Un (1) mueble de almacenamiento bilingüismo Un (1) tándem de canecas 24 sillas giratorias monoconcha con niveladores Ocho (8) mesas modulares Tres (3) biombos divisorios Un (1) tablero marcador borrable Dos (2) mesas de trabajo bilingüismo Ocho (8) sillas interlocutoras Dos (2) sofás de tres (3) puestos Un (1) tablero móvil | G44: Und | H44: 14544218.35 | J44: 19483900 | K44: 20260000 | L44: 42119450 | M44: 21293415 | N44: 23983156 | O44: 18421932.82 | Q44: 24678475.9 | R44: 18701900
A45: Región 2BILINGÜISMO | B45: Mobiliario Escolar | C45: AMBIENTE | D45: Región 2 | E45: BILINGÜISMO | F45: Bilinguismo para 40 usuarios: Seis (6) estantes de bilingüismo Un (1) revistero Dos (2) tableros móviles Un (1) mueble de almacenamiento bilingüismo Un (1) tándem de canecas 24 sillas giratorias monoconcha con niveladores Ocho (8) mesas modulares Tres (3) biombos divisorios Un (1) tablero marcador borrable Dos (2) mesas de trabajo bilingüismo Ocho (8) sillas interlocutoras Dos (2) sofás de tres (3) puestos Un (1) tablero móvil | G45: Und | H45: 14751329.69 | J45: 19853900 | K45: 21100000 | L45: 48599366 | M45: 22358086 | N45: 24283556 | O45: 18983189.84 | Q45: 25127157.9 | R45: 20073800
A46: Región 3BILINGÜISMO | B46: Mobiliario Escolar | C46: AMBIENTE | D46: Región 3 | E46: BILINGÜISMO | F46: Bilinguismo para 40 usuarios: Seis (6) estantes de bilingüismo Un (1) revistero Dos (2) tableros móviles Un (1) mueble de almacenamiento bilingüismo Un (1) tándem de canecas 24 sillas giratorias monoconcha con niveladores Ocho (8) mesas modulares Tres (3) biombos divisorios Un (1) tablero marcador borrable Dos (2) mesas de trabajo bilingüismo Ocho (8) sillas interlocutoras Dos (2) sofás de tres (3) puestos Un (1) tablero móvil | G46: Und | H46: 18450464.5 | J46: 25699900 | K46: 22770000 | L46: 89746828 | M46: 23848625 | N46: 24884056 | O46: 20295547.96 | Q46: 26921963.9 | R46: 30953500
A47: Región 1LABORATORIO CIENCIA ARTES PRIMARIA | B47: Mobiliario Escolar | C47: AMBIENTE | D47: Región 1 | E47: LABORATORIO CIENCIA ARTES PRIMARIA | F47: Laboratorio de ciencias para 40 usuarios: Diez (10) mesones de laboratorio ciencias primaria Cuarenta (40) butacos para laboratorio ciencias primaria Tres (3) estantes de depósito Tres (3) muebles móviles laboratorios Un (1) tándem de canecas Dos (2) muebles de almacenamiento laboratorio Un (1) tablero para marcador borrable | G47: Und | H47: 12456144 | J47: 9858850 | K47: 8078000 | L47: 30525056 | M47: 10564715 | N47: 15428000 | O47: 12380900 | Q47: 16028981.8 | R47: 9467800
A48: Región 2LABORATORIO CIENCIA ARTES PRIMARIA | B48: Mobiliario Escolar | C48: AMBIENTE | D48: Región 2 | E48: LABORATORIO CIENCIA ARTES PRIMARIA | F48: Laboratorio de ciencias para 40 usuarios: Diez (10) mesones de laboratorio ciencias primaria Cuarenta (40) butacos para laboratorio ciencias primaria Tres (3) estantes de depósito Tres (3) muebles móviles laboratorios Un (1) tándem de canecas Dos (2) muebles de almacenamiento laboratorio Un (1) tablero para marcador borrable | G48: Und | H48: 12734320 | J48: 10146850 | K48: 8420000 | L48: 35221218 | M48: 11092951 | N48: 15729000 | O48: 12600000 | Q48: 16320419.7 | R48: 10376600
A49: Región 3LABORATORIO CIENCIA ARTES PRIMARIA | B49: Mobiliario Escolar | C49: AMBIENTE | D49: Región 3 | E49: LABORATORIO CIENCIA ARTES PRIMARIA | F49: Laboratorio de ciencias para 40 usuarios: Diez (10) mesones de laboratorio ciencias primaria Cuarenta (40) butacos para laboratorio ciencias primaria Tres (3) estantes de depósito Tres (3) muebles móviles laboratorios Un (1) tándem de canecas Dos (2) muebles de almacenamiento laboratorio Un (1) tablero para marcador borrable | G49: Und | H49: 16275752 | J49: 15187850 | K49: 9080000 | L49: 65041849 | M49: 11832481 | N49: 16332000 | O49: 13390900 | Q49: 17486184.3 | R49: 21092700
A50: Región 1LABORATORIO INTEGRADO FÍSICA QUÍMICA SECUNDARIA | B50: Mobiliario Escolar | C50: AMBIENTE | D50: Región 1 | E50: LABORATORIO INTEGRADO FÍSICA QUÍMICA SECUNDARIA | F50: Laboratorio integrado de física-química para 40 usuarios: Diez (10) mesones de laboratorio física y química Cuarenta (40) butacos para laboratorio física y química Tres (3) estantes de depósito Tres (3) muebles móviles Un (1) tándem de canecas Dos (2) muebles de almacenamiento laboratorio física y química Un (1) tablero para marcador borrable | G50: Und | H50: 12496474 | J50: 9955850 | K50: 8610000 | L50: 30713660 | M50: 10749262 | N50: 15839000 | O50: 12450400 | Q50: 16127846.8 | R50: 9614800
A51: Región 2LABORATORIO INTEGRADO FÍSICA QUÍMICA SECUNDARIA | B51: Mobiliario Escolar | C51: AMBIENTE | D51: Región 2 | E51: LABORATORIO INTEGRADO FÍSICA QUÍMICA SECUNDARIA | F51: Laboratorio integrado de física-química para 40 usuarios: Diez (10) mesones de laboratorio física y química Cuarenta (40) butacos para laboratorio física y química Tres (3) estantes de depósito Tres (3) muebles móviles Un (1) tándem de canecas Dos (2) muebles de almacenamiento laboratorio física y química Un (1) tablero para marcador borrable | G51: Und | H51: 12774640 | J51: 10243850 | K51: 9000000 | L51: 35438838 | M51: 11286725 | N51: 16142000 | O51: 12670500 | Q51: 16421104.7 | R51: 10621600
A52: Región 3LABORATORIO INTEGRADO FÍSICA QUÍMICA SECUNDARIA | B52: Mobiliario Escolar | C52: AMBIENTE | D52: Región 3 | E52: LABORATORIO INTEGRADO FÍSICA QUÍMICA SECUNDARIA | F52: Laboratorio integrado de física-química para 40 usuarios: Diez (10) mesones de laboratorio física y química Cuarenta (40) butacos para laboratorio física y química Tres (3) estantes de depósito Tres (3) muebles móviles Un (1) tándem de canecas Dos (2) muebles de almacenamiento laboratorio física y química Un (1) tablero para marcador borrable | G52: Und | H52: 16316072 | J52: 15284850 | K52: 9680000 | L52: 65443721 | M52: 12038174 | N52: 16747000 | O52: 13602100 | Q52: 17594032.3 | R52: 21552700
A53: Región 1MANTENIMIENTO | B53: Mobiliario Escolar | C53: AMBIENTE | D53: Región 1 | E53: MANTENIMIENTO | F53: Mantenimiento: Un (1) estante de depósito Un (1) butaco mantenimiento Un (1) mesón de trabajo mantenimiento | G53: Und | H53: 602242 | J53: 482960 | K53: 619000 | L53: 1247255 | M53: 766221 | N53: 668381 | O53: 784300 | Q53: 926004.3 | R53: 1580200
A54: Región 2MANTENIMIENTO | B54: Mobiliario Escolar | C54: AMBIENTE | D54: Región 2 | E54: MANTENIMIENTO | F54: Mantenimiento: Un (1) estante de depósito Un (1) butaco mantenimiento Un (1) mesón de trabajo mantenimiento | G54: Und | H54: 603724 | J54: 496960 | K54: 644000 | L54: 1439141 | M54: 804532 | N54: 688381 | O54: 796500 | Q54: 942841.9 | R54: 1824900
A55: Región 3MANTENIMIENTO | B55: Mobiliario Escolar | C55: AMBIENTE | D55: Región 3 | E55: MANTENIMIENTO | F55: Mantenimiento: Un (1) estante de depósito Un (1) butaco mantenimiento Un (1) mesón de trabajo mantenimiento | G55: Und | H55: 993650 | J55: 633960 | K55: 695000 | L55: 2657613 | M55: 858167 | N55: 733381 | O55: 812300 | Q55: 1010187.1 | R55: 3870800
A56: Región 1OFICINA ADMINISTRATIVA | B56: Mobiliario Escolar | C56: AMBIENTE | D56: Región 1 | E56: OFICINA ADMINISTRATIVA | F56: Oficina administrativa: Un (1) puesto de oficina abierta Una (1) silla operativa con contacto permanente Un (1) archivador pequeño Una (1) papelera | G56: Und | H56: 1515222 | J56: 1319300 | K56: 1235000 | L56: 3010631 | M56: 1534457 | N56: 1609695 | O56: 1940500 | Q56: 2551174.6 | R56: 4007400
A57: Región 2OFICINA ADMINISTRATIVA | B57: Mobiliario Escolar | C57: AMBIENTE | D57: Región 2 | E57: OFICINA ADMINISTRATIVA | F57: Oficina administrativa: Un (1) puesto de oficina abierta Una (1) silla operativa con contacto permanente Un (1) archivador pequeño Una (1) papelera | G57: Und | H57: 1541958.428 | J57: 1346300 | K57: 1286000 | L57: 3473805 | M57: 1611180 | N57: 1634695 | O57: 1990400 | Q57: 2597558.6 | R57: 4391900
A58: Región 3OFICINA ADMINISTRATIVA | B58: Mobiliario Escolar | C58: AMBIENTE | D58: Región 3 | E58: OFICINA ADMINISTRATIVA | F58: Oficina administrativa: Un (1) puesto de oficina abierta Una (1) silla operativa con contacto permanente Un (1) archivador pequeño Una (1) papelera | G58: Und | H58: 1803095.082 | J58: 1501300 | K58: 1388000 | L58: 6414960 | M58: 1718592 | N58: 1684695 | O58: 2160500 | Q58: 2783098.5 | R58: 7551400
A59: Región 1PUESTO RECTORÍA | B59: Mobiliario Escolar | C59: AMBIENTE | D59: Región 1 | E59: PUESTO RECTORÍA | F59: Puesto rectoría: Un (1) escritorio atención rectoría Una (1) silla de contacto permanente con brazos Un (1) archivador pequeño Un (1) mueble para pc rectoría Una (1) mesa de juntas Seis (6) sillas interlocutoras rectoría | G59: Und | H59: 2761845 | J59: 3413700 | K59: 2224000 | L59: 4578019 | M59: 2401540 | N59: 2536840 | O59: 2902500 | Q59: 3693125.8 | R59: 2283200
A60: Región 2PUESTO RECTORÍA | B60: Mobiliario Escolar | C60: AMBIENTE | D60: Región 2 | E60: PUESTO RECTORÍA | F60: Puesto rectoría: Un (1) escritorio atención rectoría Una (1) silla de contacto permanente con brazos Un (1) archivador pequeño Un (1) mueble para pc rectoría Una (1) mesa de juntas Seis (6) sillas interlocutoras rectoría | G60: Und | H60: 2797183 | J60: 3484700 | K60: 2316000 | L60: 5282330 | M60: 2521617 | N60: 2596840 | O60: 2950400 | Q60: 3760277.3 | R60: 2515800
A61: Región 3PUESTO RECTORÍA | B61: Mobiliario Escolar | C61: AMBIENTE | D61: Región 3 | E61: PUESTO RECTORÍA | F61: Puesto rectoría: Un (1) escritorio atención rectoría Una (1) silla de contacto permanente con brazos Un (1) archivador pequeño Un (1) mueble para pc rectoría Una (1) mesa de juntas Seis (6) sillas interlocutoras rectoría | G61: Und | H61: 3389100 | J61: 4230700 | K61: 2500000 | L61: 9754702 | M61: 2689725 | N61: 2721840 | O61: 3102700 | Q61: 4028867.7 | R61: 4679500
A62: Región 1SALA DOCENTE 1 | B62: Mobiliario Escolar | C62: AMBIENTE | D62: Región 1 | E62: SALA DOCENTE 1 | F62: Sala docentes seis (6) aulas: Una (1) mesa de juntas docentes Seis (6) sillas interlocutoras Un (1) tablero móvil Un (1) cuerpo de diez (10) casilleros docentes Dos (2) cubículos dobles Cuatro (4) sillas giratorias monoconcha Dos (2) papeleras | G62: Und | H62: 3371065.286 | J62: 3732000 | K62: 4000000 | L62: 6784371 | M62: 4296133 | N62: 26337968 | O62: 3983849.52 | Q62: 4972910.8 | R62: 5318600
A63: Región 2SALA DOCENTE 1 | B63: Mobiliario Escolar | C63: AMBIENTE | D63: Región 2 | E63: SALA DOCENTE 1 | F63: Sala docentes seis (6) aulas: Una (1) mesa de juntas docentes Seis (6) sillas interlocutoras Un (1) tablero móvil Un (1) cuerpo de diez (10) casilleros docentes Dos (2) cubículos dobles Cuatro (4) sillas giratorias monoconcha Dos (2) papeleras | G63: Und | H63: 3385603.83 | J63: 3792000 | K63: 4170000 | L63: 7828121 | M63: 4510940 | N63: 26848468 | O63: 4059090.05 | Q63: 5090624.5 | R63: 5661400
A64: Región 3SALA DOCENTE 1 | B64: Mobiliario Escolar | C64: AMBIENTE | D64: Región 3 | E64: SALA DOCENTE 1 | F64: Sala docentes seis (6) aulas: Una (1) mesa de juntas docentes Seis (6) sillas interlocutoras Un (1) tablero móvil Un (1) cuerpo de diez (10) casilleros docentes Dos (2) cubículos dobles Cuatro (4) sillas giratorias monoconcha Dos (2) papeleras | G64: Und | H64: 4377889 | J64: 4734000 | K64: 4500000 | L64: 14455929 | M64: 4811669 | N64: 27869468 | O64: 4270190.26 | Q64: 5454242.3 | R64: 9079700
A65: Región 1SALA DOCENTE 2 | B65: Mobiliario Escolar | C65: AMBIENTE | D65: Región 1 | E65: SALA DOCENTE 2 | F65: Sala docente 12 aulas: Dos (2) mesas de juntas docentes Doce (12) sillas interlocutoras Dos (2) tableros móviles Dos (2) cuerpos de diez (10) casilleros docentes Cuatro (4) cubículos dobles Ocho (8) sillas giratorias monoconcha Cuatro (4) papeleras | G65: Und | H65: 6742130.572 | J65: 7464000 | K65: 8000000 | L65: 13568742 | M65: 8592266 | N65: 105350372 | O65: 7754514.76 | Q65: 9945821.6 | R65: 10565800
A66: =D66&E66 -> Región 2SALA DOCENTE 2 | B66: Mobiliario Escolar | C66: AMBIENTE | D66: Región 2 | E66: SALA DOCENTE 2 | F66: Sala docente 12 aulas: Dos (2) mesas de juntas docentes Doce (12) sillas interlocutoras Dos (2) tableros móviles Dos (2) cuerpos de diez (10) casilleros docentes Cuatro (4) cubículos dobles Ocho (8) sillas giratorias monoconcha Cuatro (4) papeleras | G66: Und | H66: 6771207.66 | J66: 7584000 | K66: 8340000 | L66: 15656241 | M66: 9021879 | N66: 107390872 | O66: 7986335.97 | Q66: 10181249 | R66: 11249400
A67: Región 3SALA DOCENTE 2 | B67: Mobiliario Escolar | C67: AMBIENTE | D67: Región 3 | E67: SALA DOCENTE 2 | F67: Sala docente 12 aulas: Dos (2) mesas de juntas docentes Doce (12) sillas interlocutoras Dos (2) tableros móviles Dos (2) cuerpos de diez (10) casilleros docentes Cuatro (4) cubículos dobles Ocho (8) sillas giratorias monoconcha Cuatro (4) papeleras | G67: Und | H67: 8755778 | J67: 9218000 | K67: 9000000 | L67: 28911858 | M67: 9623338 | N67: 111471872 | O67: 8540380.52 | Q67: 10908484.6 | R67: 18086000
A68: Región 1ALMACENAMIENTO AULA TIM | B68: Mobiliario Escolar | C68: CONJUNTO | D68: Región 1 | E68: ALMACENAMIENTO AULA TIM | F68: Mueble móvil de contenidos aula TIM (4) | G68: Und | H68: 2524480 | J68: 2370400 | K68: 916000 | L68: 5102124 | M68: 3573836 | N68: 2540000 | O68: 3161600 | Q68: 3921580 | R68: 3596000
A69: Región 2ALMACENAMIENTO AULA TIM | B69: Mobiliario Escolar | C69: CONJUNTO | D69: Región 2 | E69: ALMACENAMIENTO AULA TIM | F69: Mueble móvil de contenidos aula TIM (4) | G69: Und | H69: 2576000 | J69: 2410400 | K69: 952000 | L69: 5887068 | M69: 3752528 | N69: 2560000 | O69: 3261600 | Q69: 3992877.2 | R69: 3660000
A70: Región 3ALMACENAMIENTO AULA TIM | B70: Mobiliario Escolar | C70: CONJUNTO | D70: Región 3 | E70: ALMACENAMIENTO AULA TIM | F70: Mueble móvil de contenidos aula TIM (4) | G70: Und | H70: 3451840 | J70: 3650400 | K70: 1028000 | L70: 10871452 | M70: 4002696 | N70: 2600000 | O70: 3425600 | Q70: 4278086.8 | R70: 4480000
A71: Región 1ALMACENAMIENTO BILINGÜISMO | B71: Mobiliario Escolar | C71: CONJUNTO | D71: Región 1 | E71: ALMACENAMIENTO BILINGÜISMO | F71: Módulo de biblioteca de 1,30 mts. (6) Revistero (1) Mueble de almacenamiento biblioteca (1) | G71: Und | H71: 3834116 | J71: 6188000 | K71: 3179000 | L71: 8994573 | M71: 5673539 | N71: 6444400 | O71: 5075882.88 | Q71: 5909698.6 | R71: 3350800
A72: Región 2ALMACENAMIENTO BILINGÜISMO | B72: Mobiliario Escolar | C72: CONJUNTO | D72: Región 2 | E72: ALMACENAMIENTO BILINGÜISMO | F72: Módulo de biblioteca de 1,30 mts. (6) Revistero (1) Mueble de almacenamiento biblioteca (1) | G72: Und | H72: 3902816 | J72: 6335000 | K72: 3308000 | L72: 10378356 | M72: 5957218 | N72: 6484400 | O72: 5129543.52 | Q72: 6017142.3 | R72: 3711600
A73: Región 3ALMACENAMIENTO BILINGÜISMO | B73: Mobiliario Escolar | C73: CONJUNTO | D73: Región 3 | E73: ALMACENAMIENTO BILINGÜISMO | F73: Módulo de biblioteca de 1,30 mts. (6) Revistero (1) Mueble de almacenamiento biblioteca (1) | G73: Und | H73: 5285296 | J73: 9170000 | K73: 3570000 | L73: 19165363 | M73: 6354367 | N73: 6564400 | O73: 5513034.16 | Q73: 6446944.4 | R73: 5371800
A74: Región 1CUBÍCULOS DOBLES DE TRABAJO SALA DOCENTE | B74: Mobiliario Escolar | C74: CONJUNTO | D74: Región 1 | E74: CUBÍCULOS DOBLES DE TRABAJO SALA DOCENTE | F74: Silla neumática giratoria mono concha sala docente (2) Cubículo doble de trabajo sala docente (1) | G74: Und | H74: 579609 | J74: 709700 | K74: 1011000 | L74: 1538515 | M74: 911894 | N74: 958869 | O74: 971500 | Q74: 905866.6 | R74: 725500
A75: Región 2CUBÍCULOS DOBLES DE TRABAJO SALA DOCENTE | B75: Mobiliario Escolar | C75: CONJUNTO | D75: Región 2 | E75: CUBÍCULOS DOBLES DE TRABAJO SALA DOCENTE | F75: Silla neumática giratoria mono concha sala docente (2) Cubículo doble de trabajo sala docente (1) | G75: Und | H75: 586053 | J75: 723700 | K75: 1052000 | L75: 1775210 | M75: 957489 | N75: 973869 | O75: 1031200 | Q75: 944695.1 | R75: 779600
A76: Región 3CUBÍCULOS DOBLES DE TRABAJO SALA DOCENTE | B76: Mobiliario Escolar | C76: CONJUNTO | D76: Región 3 | E76: CUBÍCULOS DOBLES DE TRABAJO SALA DOCENTE | F76: Silla neumática giratoria mono concha sala docente (2) Cubículo doble de trabajo sala docente (1) | G76: Und | H76: 736056 | J76: 848700 | K76: 1137000 | L76: 3278221 | M76: 1021323 | N76: 1003869 | O76: 1088200 | Q76: 1018360.5 | R76: 1382300
A77: Región 1DESCANSO SALA DOCENTE (OPCIONAL) | B77: Mobiliario Escolar | C77: CONJUNTO | D77: Región 1 | E77: DESCANSO SALA DOCENTE (OPCIONAL) | F77: Sofá de dos (2) puestos (1) Mesa auxiliar sala docente (1) | G77: Und | H77: 1265508 | J77: 1390300 | K77: 947000 | L77: 4501030 | M77: 1179228 | N77: 1978627 | O77: 1026600 | Q77: 1040637.7 | R77: 1785400
A78: Región 2DESCANSO SALA DOCENTE (OPCIONAL) | B78: Mobiliario Escolar | C78: CONJUNTO | D78: Región 2 | E78: DESCANSO SALA DOCENTE (OPCIONAL) | F78: Sofá de dos (2) puestos (1) Mesa auxiliar sala docente (1) | G78: Und | H78: 1271764 | J78: 1418300 | K78: 986000 | L78: 5193497 | M78: 1238189 | N78: 1988627 | O78: 1038400 | Q78: 1059557.4 | R78: 1894600
A79: Región 3DESCANSO SALA DOCENTE (OPCIONAL) | B79: Mobiliario Escolar | C79: CONJUNTO | D79: Región 3 | E79: DESCANSO SALA DOCENTE (OPCIONAL) | F79: Sofá de dos (2) puestos (1) Mesa auxiliar sala docente (1) | G79: Und | H79: 1427248 | J79: 1848300 | K79: 1064000 | L79: 9590657 | M79: 1320735 | N79: 2008627 | O79: 1118300 | Q79: 1135241.4 | R79: 2299000
A80: Región 1EXHIBICIÓN | B80: Mobiliario Escolar | C80: CONJUNTO | D80: Región 1 | E80: EXHIBICIÓN | F80: Revistero (2) | G80: Und | H80: 624692 | J80: 715000 | K80: 384000 | L80: 1173146 | M80: 894600 | N80: 1328800 | O80: 541000 | Q80: 698354.8 | R80: 701400
A81: Región 2EXHIBICIÓN | B81: Mobiliario Escolar | C81: CONJUNTO | D81: Región 2 | E81: EXHIBICIÓN | F81: Revistero (2) | G81: Und | H81: 637236 | J81: 729000 | K81: 400000 | L81: 1353630 | M81: 939330 | N81: 1338800 | O81: 549800 | Q81: 711050.6 | R81: 789200
A82: Región 3EXHIBICIÓN | B82: Mobiliario Escolar | C82: CONJUNTO | D82: Región 3 | E82: EXHIBICIÓN | F82: Revistero (2) | G82: Und | H82: 777728 | J82: 1079000 | K82: 430000 | L82: 2499704 | M82: 1001952 | N82: 1358800 | O82: 596000 | Q82: 761841.6 | R82: 1224000
A83: Región 1PUESTO DE COMEDOR | B83: Mobiliario Escolar | C83: CONJUNTO | D83: Región 1 | E83: PUESTO DE COMEDOR | F83: Silla cafeteria - auditorio (8) Mesa de cafetería plegable (1) | G83: Und | H83: 877791 | J83: 712300 | K83: 1227000 | L83: 2310152 | M83: 1606154 | N83: 932000 | O83: 915200 | Q83: 1111149 | R83: 779400
A84: Región 2PUESTO DE COMEDOR | B84: Mobiliario Escolar | C84: CONJUNTO | D84: Región 2 | E84: PUESTO DE COMEDOR | F84: Silla cafeteria - auditorio (8) Mesa de cafetería plegable (1) | G84: Und | H84: 896621 | J84: 721300 | K84: 1281000 | L84: 2665563 | M84: 1686457 | N84: 977000 | O84: 924300 | Q84: 1131343.2 | R84: 833100
A85: Región 3PUESTO DE COMEDOR | B85: Mobiliario Escolar | C85: CONJUNTO | D85: Región 3 | E85: PUESTO DE COMEDOR | F85: Silla cafeteria - auditorio (8) Mesa de cafetería plegable (1) | G85: Und | H85: 1256675 | J85: 879300 | K85: 1381000 | L85: 4922400 | M85: 1798886 | N85: 1067000 | O85: 988800 | Q85: 1212161.6 | R85: 1279800
A86: Región 1PUESTO DE TRABAJO ADMINISTRATIVO | B86: Mobiliario Escolar | C86: CONJUNTO | D86: Región 1 | E86: PUESTO DE TRABAJO ADMINISTRATIVO | F86: Puesto de trabajo estándar (1) Silla neumática administrativa (1) Archivador (1) | G86: Und | H86: 1580423 | J86: 1359500 | K86: 2118000 | L86: 3332732 | M86: 1846340 | N86: 1928695 | O86: 2016100 | Q86: 2574736.75 | R86: 1443500
A87: Región 2PUESTO DE TRABAJO ADMINISTRATIVO | B87: Mobiliario Escolar | C87: CONJUNTO | D87: Región 2 | E87: PUESTO DE TRABAJO ADMINISTRATIVO | F87: Puesto de trabajo estándar (1) Silla neumática administrativa (1) Archivador (1) | G87: Und | H87: 1605813 | J87: 1384500 | K87: 2206000 | L87: 3845460 | M87: 1938658 | N87: 1943695 | O87: 2101450 | Q87: 2621549.1 | R87: 1566700
A88: Región 3PUESTO DE TRABAJO ADMINISTRATIVO | B88: Mobiliario Escolar | C88: CONJUNTO | D88: Región 3 | E88: PUESTO DE TRABAJO ADMINISTRATIVO | F88: Puesto de trabajo estándar (1) Silla neumática administrativa (1) Archivador (1) | G88: Und | H88: 1832836 | J88: 1549500 | K88: 2381000 | L88: 7101283 | M88: 2067902 | N88: 1973695 | O88: 2258400 | Q88: 2808803.1 | R88: 2315200
A89: Región 1PUESTO DE TRABAJO AULA PREESCOLAR | B89: Mobiliario Escolar | C89: CONJUNTO | D89: Región 1 | E89: PUESTO DE TRABAJO AULA PREESCOLAR | F89: Silla puesto de trabajo preescolar (12) Mesa puesto de trabajo preescolar (4) Mesa auxiliar puesto de trabajo preescolar (1) | G89: Und | H89: 1252066 | J89: 1101900 | K89: 982000 | L89: 2132921 | M89: 1239844 | N89: 1519000 | O89: 1288000 | Q89: 1598821.9 | R89: 1228200
A90: Región 2PUESTO DE TRABAJO AULA PREESCOLAR | B90: Mobiliario Escolar | C90: CONJUNTO | D90: Región 2 | E90: PUESTO DE TRABAJO AULA PREESCOLAR | F90: Silla puesto de trabajo preescolar (12) Mesa puesto de trabajo preescolar (4) Mesa auxiliar puesto de trabajo preescolar (1) | G90: Und | H90: 1281442 | J90: 1123900 | K90: 1031000 | L90: 2461068 | M90: 1301838 | N90: 1604000 | O90: 1313300 | Q90: 1627876.9 | R90: 1428900
A91: Región 3PUESTO DE TRABAJO AULA PREESCOLAR | B91: Mobiliario Escolar | C91: CONJUNTO | D91: Región 3 | E91: PUESTO DE TRABAJO AULA PREESCOLAR | F91: Silla puesto de trabajo preescolar (12) Mesa puesto de trabajo preescolar (4) Mesa auxiliar puesto de trabajo preescolar (1) | G91: Und | H91: 1681292 | J91: 1361900 | K91: 1104000 | L91: 4544762 | M91: 1388624 | N91: 1774000 | O91: 1455600 | Q91: 1744168.4 | R91: 2952100
A92: Región 1PUESTO DE TRABAJO AULA PRIMARIA | B92: Mobiliario Escolar | C92: CONJUNTO | D92: Región 1 | E92: PUESTO DE TRABAJO AULA PRIMARIA | F92: Silla puesto de trabajo primaria (1) Mesa puesto de trabajo básica primaria (1) | G92: Und | H92: 137510 | J92: 125010 | K92: 130000 | L92: 306984 | M92: 130099 | N92: 188000 | O92: 130300 | Q92: 136138.6 | R92: 144700
A93: Región 2PUESTO DE TRABAJO AULA PRIMARIA | B93: Mobiliario Escolar | C93: CONJUNTO | D93: Región 2 | E93: PUESTO DE TRABAJO AULA PRIMARIA | F93: Silla puesto de trabajo primaria (1) Mesa puesto de trabajo básica primaria (1) | G93: Und | H93: 138232 | J93: 127310 | K93: 136000 | L93: 354212 | M93: 136604 | N93: 198000 | O93: 149900 | Q93: 138612.5 | R93: 165400
A94: Región 3PUESTO DE TRABAJO AULA PRIMARIA | B94: Mobiliario Escolar | C94: CONJUNTO | D94: Región 3 | E94: PUESTO DE TRABAJO AULA PRIMARIA | F94: Silla puesto de trabajo primaria (1) Mesa puesto de trabajo básica primaria (1) | G94: Und | H94: 211032 | J94: 164310 | K94: 146000 | L94: 654110 | M94: 145711 | N94: 218000 | O94: 169900 | Q94: 148514.6 | R94: 303500
A95: Región 1PUESTO DE TRABAJO AULA SECUNDARIA | B95: Mobiliario Escolar | C95: CONJUNTO | D95: Región 1 | E95: PUESTO DE TRABAJO AULA SECUNDARIA | F95: Silla puesto de trabajo secundaria (1) Mesa puesto de trabajo básica secundaria (1) | G95: Und | H95: 138041 | J95: 128890 | K95: 139000 | L95: 319266 | M95: 136503 | N95: 195000 | O95: 133300 | Q95: 140822.5 | R95: 149000
A96: Región 2PUESTO DE TRABAJO AULA SECUNDARIA | B96: Mobiliario Escolar | C96: CONJUNTO | D96: Región 2 | E96: PUESTO DE TRABAJO AULA SECUNDARIA | F96: Silla puesto de trabajo secundaria (1) Mesa puesto de trabajo básica secundaria (1) | G96: Und | H96: 138762 | J96: 131190 | K96: 146000 | L96: 368384 | M96: 143329 | N96: 205000 | O96: 143100 | Q96: 143383.5 | R96: 169800
A97: Región 3PUESTO DE TRABAJO AULA SECUNDARIA | B97: Mobiliario Escolar | C97: CONJUNTO | D97: Región 3 | E97: PUESTO DE TRABAJO AULA SECUNDARIA | F97: Silla puesto de trabajo secundaria (1) Mesa puesto de trabajo básica secundaria (1) | G97: Und | H97: 216095 | J97: 168190 | K97: 157000 | L97: 680282 | M97: 152883 | N97: 225000 | O97: 168700 | Q97: 153624.9 | R97: 311100
A98: Región 1PUESTO DE TRABAJO AULA TIM | B98: Mobiliario Escolar | C98: CONJUNTO | D98: Región 1 | E98: PUESTO DE TRABAJO AULA TIM | F98: Mesa modular aula TIM (1) Mesa modular TIM con multitoma retráctil (1) Silla neumática giratoria mono concha aula TIM (6) | G98: Und | H98: 1476301 | J98: 2008300 | K98: 2742000 | L98: 2660844 | M98: 3341660 | N98: 2178764 | O98: 2337900 | Q98: 2364648.8 | R98: 1785800
A99: Región 2PUESTO DE TRABAJO AULA TIM | B99: Mobiliario Escolar | C99: CONJUNTO | D99: Región 2 | E99: PUESTO DE TRABAJO AULA TIM | F99: Mesa modular aula TIM (1) Mesa modular TIM con multitoma retráctil (1) Silla neumática giratoria mono concha aula TIM (6) | G99: Und | H99: 1501856 | J99: 2040300 | K99: 2859000 | L99: 3070205 | M99: 3508743 | N99: 2218764 | O99: 2483600 | Q99: 2407695.9 | R99: 1912800
A100: Región 3PUESTO DE TRABAJO AULA TIM | B100: Mobiliario Escolar | C100: CONJUNTO | D100: Región 3 | E100: PUESTO DE TRABAJO AULA TIM | F100: Mesa modular aula TIM (1) Mesa modular TIM con multitoma retráctil (1) Silla neumática giratoria mono concha aula TIM (6) | G100: Und | H100: 1706072 | J100: 2510300 | K100: 3084000 | L100: 5669648 | M100: 3742663 | N100: 2298764 | O100: 2734000 | Q100: 2579618.2 | R100: 3458300
A101: Región 1PUESTO DE TRABAJO BIBLIOTECA OPCIÓN 1 - PREDETERMINADA | B101: Mobiliario Escolar | C101: CONJUNTO | D101: Región 1 | E101: PUESTO DE TRABAJO BIBLIOTECA OPCIÓN 1 - PREDETERMINADA | F101: Silla interlocutora biblioteca - bilinguismo (4) Mesa de trabajo consulta lectura biblioteca (1) | G101: Und | H101: 542440 | J101: 451650 | K101: 337000 | L101: 849959 | M101: 660207 | N101: 605000 | O101: 445600 | Q101: 567258.9 | R101: 485400
A102: Región 2PUESTO DE TRABAJO BIBLIOTECA OPCIÓN 1 - PREDETERMINADA | B102: Mobiliario Escolar | C102: CONJUNTO | D102: Región 2 | E102: PUESTO DE TRABAJO BIBLIOTECA OPCIÓN 1 - PREDETERMINADA | F102: Silla interlocutora biblioteca - bilinguismo (4) Mesa de trabajo consulta lectura biblioteca (1) | G102: Und | H102: 551264 | J102: 457650 | K102: 352000 | L102: 980722 | M102: 693214 | N102: 630000 | O102: 454000 | Q102: 577567.9 | R102: 537300
A103: Región 3PUESTO DE TRABAJO BIBLIOTECA OPCIÓN 1 - PREDETERMINADA | B103: Mobiliario Escolar | C103: CONJUNTO | D103: Región 3 | E103: PUESTO DE TRABAJO BIBLIOTECA OPCIÓN 1 - PREDETERMINADA | F103: Silla interlocutora biblioteca - bilinguismo (4) Mesa de trabajo consulta lectura biblioteca (1) | G103: Und | H103: 742447 | J103: 551650 | K103: 379000 | L103: 1811063 | M103: 739428 | N103: 680000 | O103: 484300 | Q103: 618827.3 | R103: 884400
A104: Región 1PUESTO DE TRABAJO BIBLIOTECA OPCIÓN 2 | B104: Mobiliario Escolar | C104: CONJUNTO | D104: Región 1 | E104: PUESTO DE TRABAJO BIBLIOTECA OPCIÓN 2 | F104: Silla interlocutora biblioteca - bilinguismo (3) Mesa de consulta trapezoidal biblioteca (1) | G104: Und | H104: 330884 | J104: 268350 | K104: 219000 | L104: 552335 | M104: 414909 | N104: 509000 | O104: 305100 | Q104: 404748.5 | R104: 356200
A105: Región 2PUESTO DE TRABAJO BIBLIOTECA OPCIÓN 2 | B105: Mobiliario Escolar | C105: CONJUNTO | D105: Región 2 | E105: PUESTO DE TRABAJO BIBLIOTECA OPCIÓN 2 | F105: Silla interlocutora biblioteca - bilinguismo (3) Mesa de consulta trapezoidal biblioteca (1) | G105: Und | H105: 334051 | J105: 277350 | K105: 229000 | L105: 637310 | M105: 435652 | N105: 529000 | O105: 311700 | Q105: 412105.2 | R105: 386900
A106: Región 3PUESTO DE TRABAJO BIBLIOTECA OPCIÓN 2 | B106: Mobiliario Escolar | C106: CONJUNTO | D106: Región 3 | E106: PUESTO DE TRABAJO BIBLIOTECA OPCIÓN 2 | F106: Silla interlocutora biblioteca - bilinguismo (3) Mesa de consulta trapezoidal biblioteca (1) | G106: Und | H106: 455066 | J106: 332350 | K106: 246000 | L106: 1176896 | M106: 464696 | N106: 569000 | O106: 333900 | Q106: 441543.7 | R106: 825800
A107: Región 1PUESTO DE TRABAJO BILINGÜISMO 1 | B107: Mobiliario Escolar | C107: CONJUNTO | D107: Región 1 | E107: PUESTO DE TRABAJO BILINGÜISMO 1 | F107: Mesa modular circunferencias (8) Silla neumática giratoria mono concha (24) | G107: Und | H107: 5341400 | J107: 7257200 | K107: 10104000 | L107: 8879376 | M107: 8597944 | N107: 8395056 | O107: 8515200 | Q107: 8903557.6 | R107: 6240800
A108: Región 2PUESTO DE TRABAJO BILINGÜISMO 1 | B108: Mobiliario Escolar | C108: CONJUNTO | D108: Región 2 | E108: PUESTO DE TRABAJO BILINGÜISMO 1 | F108: Mesa modular circunferencias (8) Silla neumática giratoria mono concha (24) | G108: Und | H108: 5441824 | J108: 7385200 | K108: 10512000 | L108: 10245432 | M108: 9027840 | N108: 8555056 | O108: 9058400 | Q108: 9065436.8 | R108: 6736800
A109: Región 3PUESTO DE TRABAJO BILINGÜISMO 1 | B109: Mobiliario Escolar | C109: CONJUNTO | D109: Región 3 | E109: PUESTO DE TRABAJO BILINGÜISMO 1 | F109: Mesa modular circunferencias (8) Silla neumática giratoria mono concha (24) | G109: Und | H109: 6337320 | J109: 9265200 | K109: 11360000 | L109: 18919912 | M109: 9629712 | N109: 8875056 | O109: 9872800 | Q109: 9712974.4 | R109: 12784800
A110: Región 1PUESTO DE TRABAJO BILINGÜISMO 2 | B110: Mobiliario Escolar | C110: CONJUNTO | D110: Región 1 | E110: PUESTO DE TRABAJO BILINGÜISMO 2 | F110: Silla interlocutora biblioteca - bilinguismo (4) Mesa de trabajo bilinguismo (1) | G110: Und | H110: 542440 | J110: 451650 | K110: 337000 | L110: 849959 | M110: 610672 | N110: 605000 | O110: 446400 | Q110: 567258.9 | R110: 485400
A111: Región 2PUESTO DE TRABAJO BILINGÜISMO 2 | B111: Mobiliario Escolar | C111: CONJUNTO | D111: Región 2 | E111: PUESTO DE TRABAJO BILINGÜISMO 2 | F111: Silla interlocutora biblioteca - bilinguismo (4) Mesa de trabajo bilinguismo (1) | G111: Und | H111: 551264 | J111: 457650 | K111: 352000 | L111: 980722 | M111: 641203 | N111: 630000 | O111: 451700 | Q111: 577567.9 | R111: 537300
A112: Región 3PUESTO DE TRABAJO BILINGÜISMO 2 | B112: Mobiliario Escolar | C112: CONJUNTO | D112: Región 3 | E112: PUESTO DE TRABAJO BILINGÜISMO 2 | F112: Silla interlocutora biblioteca - bilinguismo (4) Mesa de trabajo bilinguismo (1) | G112: Und | H112: 754551 | J112: 551650 | K112: 379000 | L112: 1811063 | M112: 683950 | N112: 680000 | O112: 485800 | Q112: 605827.3 | R112: 884400
A113: Región 1PUESTO DE TRABAJO BILINGÜISMO 3 | B113: Mobiliario Escolar | C113: CONJUNTO | D113: Región 1 | E113: PUESTO DE TRABAJO BILINGÜISMO 3 | F113: Sofá de tres (3) puestos (2) | G113: Und | H113: 2290000 | J113: 3592000 | K113: 4356000 | L113: 13600002 | M113: 3560000 | N113: 6450000 | O113: 2218600 | Q113: 2168512 | R113: 6250800
A114: Región 2PUESTO DE TRABAJO BILINGÜISMO 3 | B114: Mobiliario Escolar | C114: CONJUNTO | D114: Región 2 | E114: PUESTO DE TRABAJO BILINGÜISMO 3 | F114: Sofá de tres (3) puestos (2) | G114: Und | H114: 2300000 | J114: 3632000 | K114: 4536000 | L114: 15692310 | M114: 3738000 | N114: 6460000 | O114: 2225000 | Q114: 2207940 | R114: 6500000
A115: Región 3PUESTO DE TRABAJO BILINGÜISMO 3 | B115: Mobiliario Escolar | C115: CONJUNTO | D115: Región 3 | E115: PUESTO DE TRABAJO BILINGÜISMO 3 | F115: Sofá de tres (3) puestos (2) | G115: Und | H115: 2540000 | J115: 4392000 | K115: 4896000 | L115: 28978466 | M115: 3987200 | N115: 6480000 | O115: 2380200 | Q115: 2365650 | R115: 7700000
A116: Región 1PUESTO DE TRABAJO DOCENTE | B116: Mobiliario Escolar | C116: CONJUNTO | D116: Región 1 | E116: PUESTO DE TRABAJO DOCENTE | F116: Silla puesto de trabajo docente (1) Mesa puesto docente (1) | G116: Und | H116: 280148 | J116: 256450 | K116: 186000 | L116: 448455 | M116: 642711 | N116: 380851 | O116: 232000 | Q116: 308053.2 | R116: 216500
A117: Región 2PUESTO DE TRABAJO DOCENTE | B117: Mobiliario Escolar | C117: CONJUNTO | D117: Región 2 | E117: PUESTO DE TRABAJO DOCENTE | F117: Silla puesto de trabajo docente (1) Mesa puesto docente (1) | G117: Und | H117: 294531 | J117: 268950 | K117: 194000 | L117: 517448 | M117: 674847 | N117: 390851 | O117: 252000 | Q117: 313653.6 | R117: 236000
A118: Región 3PUESTO DE TRABAJO DOCENTE | B118: Mobiliario Escolar | C118: CONJUNTO | D118: Región 3 | E118: PUESTO DE TRABAJO DOCENTE | F118: Silla puesto de trabajo docente (1) Mesa puesto docente (1) | G118: Und | H118: 416244 | J118: 317950 | K118: 209000 | L118: 955553 | M118: 719836 | N118: 410851 | O118: 281700 | Q118: 336057.8 | R118: 414600
A119: Región 1PUESTO DE TRABAJO LABORATORIO CIENCIAS PRIMARIA | B119: Mobiliario Escolar | C119: CONJUNTO | D119: Región 1 | E119: PUESTO DE TRABAJO LABORATORIO CIENCIAS PRIMARIA | F119: Mesón laboratorio primaria (10) Butaco laboratorio primaria ciencias y artes (40) Mueble móvil laboratorio (3) | G119: Und | H119: 9906822 | J119: 7710250 | K119: 7447000 | L119: 26745576 | M119: 8347675 | N119: 12425000 | O119: 8625700 | Q119: 12072086 | R119: 7315700
A120: Región 2PUESTO DE TRABAJO LABORATORIO CIENCIAS PRIMARIA | B120: Mobiliario Escolar | C120: CONJUNTO | D120: Región 2 | E120: PUESTO DE TRABAJO LABORATORIO CIENCIAS PRIMARIA | F120: Mesón laboratorio primaria (10) Butaco laboratorio primaria ciencias y artes (40) Mueble móvil laboratorio (3) | G120: Und | H120: 10138952 | J120: 7945250 | K120: 7734000 | L120: 30860303 | M120: 8765041 | N120: 12690000 | O120: 8874200 | Q120: 12795693.3 | R120: 8116600
A121: Región 3PUESTO DE TRABAJO LABORATORIO CIENCIAS PRIMARIA | B121: Mobiliario Escolar | C121: CONJUNTO | D121: Región 3 | E121: PUESTO DE TRABAJO LABORATORIO CIENCIAS PRIMARIA | F121: Mesón laboratorio primaria (10) Butaco laboratorio primaria ciencias y artes (40) Mueble móvil laboratorio (3) | G121: Und | H121: 12069640 | J121: 12045250 | K121: 8341000 | L121: 56988642 | M121: 9349382 | N121: 13220000 | O121: 9736000 | Q121: 13185456.7 | R121: 17871000
A122: Región 1PUESTO DE TRABAJO LABORATORIO CIENCIAS PRIMARIA 1 | B122: Mobiliario Escolar | C122: CONJUNTO | D122: Región 1 | E122: PUESTO DE TRABAJO LABORATORIO CIENCIAS PRIMARIA 1 | F122: Mesón laboratorio primaria (1) Butaco laboratorio primaria ciencias y artes (4) | G122: Und | H122: 938007 | J122: 698140 | K122: 676000 | L122: 2537163 | M122: 708097 | N122: 1052000 | O122: 769600 | Q122: 1084374.2 | R122: 666200
A123: Región 2PUESTO DE TRABAJO LABORATORIO CIENCIAS PRIMARIA 1 | B123: Mobiliario Escolar | C123: CONJUNTO | D123: Región 2 | E123: PUESTO DE TRABAJO LABORATORIO CIENCIAS PRIMARIA 1 | F123: Mesón laboratorio primaria (1) Butaco laboratorio primaria ciencias y artes (4) | G123: Und | H123: 959096 | J123: 720140 | K123: 702000 | L123: 2927498 | M123: 743500 | N123: 1077000 | O123: 792500 | Q123: 1154501.4 | R123: 740500
A124: Región 3PUESTO DE TRABAJO LABORATORIO CIENCIAS PRIMARIA 1 | B124: Mobiliario Escolar | C124: CONJUNTO | D124: Región 3 | E124: PUESTO DE TRABAJO LABORATORIO CIENCIAS PRIMARIA 1 | F124: Mesón laboratorio primaria (1) Butaco laboratorio primaria ciencias y artes (4) | G124: Und | H124: 1126252 | J124: 1112140 | K124: 757000 | L124: 5406108 | M124: 793067 | N124: 1127000 | O124: 870700 | Q124: 1184544.4 | R124: 1659000
A125: Región 1PUESTO DE TRABAJO LABORATORIO INTEGRADO FÍSICA - QUÍMICA | B125: Mobiliario Escolar | C125: CONJUNTO | D125: Región 1 | E125: PUESTO DE TRABAJO LABORATORIO INTEGRADO FÍSICA - QUÍMICA | F125: Mesón laboratorio integrado secundaria física - química (10) Butaco de laboratorio integrado física-química secundaria (40) Mueble móvil laboratorio (3) | G125: Und | H125: 9903400 | J125: 7807250 | K125: 7787000 | L125: 32633786 | M125: 10938165 | N125: 12835000 | O125: 8704700 | Q125: 12170951 | R125: 7462700
A126: Región 2PUESTO DE TRABAJO LABORATORIO INTEGRADO FÍSICA - QUÍMICA | B126: Mobiliario Escolar | C126: CONJUNTO | D126: Región 2 | E126: PUESTO DE TRABAJO LABORATORIO INTEGRADO FÍSICA - QUÍMICA | F126: Mesón laboratorio integrado secundaria física - química (10) Butaco de laboratorio integrado física-química secundaria (40) Mueble móvil laboratorio (3) | G126: Und | H126: 10114280 | J126: 8042250 | K126: 8284000 | L126: 37654383 | M126: 11485051 | N126: 13100000 | O126: 8959200 | Q126: 12392264.3 | R126: 8361600
A127: Región 3PUESTO DE TRABAJO LABORATORIO INTEGRADO FÍSICA - QUÍMICA | B127: Mobiliario Escolar | C127: CONJUNTO | D127: Región 3 | E127: PUESTO DE TRABAJO LABORATORIO INTEGRADO FÍSICA - QUÍMICA | F127: Mesón laboratorio integrado secundaria física - química (10) Butaco de laboratorio integrado física-química secundaria (40) Mueble móvil laboratorio (3) | G127: Und | H127: 11992840 | J127: 12142250 | K127: 8941000 | L127: 69535082 | M127: 12250712 | N127: 13630000 | O127: 9742000 | Q127: 13277418.7 | R127: 18331000
A128: Región 1PUESTO DE TRABAJO LABORATORIO INTEGRADO FÍSICA - QUÍMICA 1 | B128: Mobiliario Escolar | C128: CONJUNTO | D128: Región 1 | E128: PUESTO DE TRABAJO LABORATORIO INTEGRADO FÍSICA - QUÍMICA 1 | F128: Mesón laboratorio integrado secundaria física - química (1) Butaco de laboratorio integrado física-química secundaria (4) | G128: Und | H128: 942040 | J128: 707840 | K128: 710000 | L128: 3125984 | M128: 967146 | N128: 1093000 | O128: 777500 | Q128: 1094260.7 | R128: 680900
A129: Región 2PUESTO DE TRABAJO LABORATORIO INTEGRADO FÍSICA - QUÍMICA 1 | B129: Mobiliario Escolar | C129: CONJUNTO | D129: Región 2 | E129: PUESTO DE TRABAJO LABORATORIO INTEGRADO FÍSICA - QUÍMICA 1 | F129: Mesón laboratorio integrado secundaria física - química (1) Butaco de laboratorio integrado física-química secundaria (4) | G129: Und | H129: 963128 | J129: 729840 | K129: 757000 | L129: 3606906 | M129: 1015501 | N129: 1118000 | O129: 801000 | Q129: 1114158.5 | R129: 765000
A130: =D130&E130 -> Región 3PUESTO DE TRABAJO LABORATORIO INTEGRADO FÍSICA - QUÍMICA 1 | B130: Mobiliario Escolar | C130: CONJUNTO | D130: Región 3 | E130: PUESTO DE TRABAJO LABORATORIO INTEGRADO FÍSICA - QUÍMICA 1 | F130: Mesón laboratorio integrado secundaria física - química (1) Butaco de laboratorio integrado física-química secundaria (4) | G130: Und | H130: 1130284 | J130: 1121840 | K130: 817000 | L130: 6660752 | M130: 1083200 | N130: 1168000 | O130: 871300 | Q130: 1193740.6 | R130: 1705000
A131: Región 1PUESTO DE TRABAJO MANTENIMIENTO | B131: Mobiliario Escolar | C131: CONJUNTO | D131: Región 1 | E131: PUESTO DE TRABAJO MANTENIMIENTO | F131: Banco de trabajo mantenimiento (1) Estantería de depósito (1) Butaco banco de trabajo mantenimiento (1) | G131: Und | H131: 602242 | J131: 473960 | K131: 620000 | L131: 1247255 | M131: 766221 | N131: 663381 | O131: 704400 | Q131: 926004.3 | R131: 593600
A132: Región 2PUESTO DE TRABAJO MANTENIMIENTO | B132: Mobiliario Escolar | C132: CONJUNTO | D132: Región 2 | E132: PUESTO DE TRABAJO MANTENIMIENTO | F132: Banco de trabajo mantenimiento (1) Estantería de depósito (1) Butaco banco de trabajo mantenimiento (1) | G132: Und | H132: 603724 | J132: 483960 | K132: 645000 | L132: 1439141 | M132: 804532 | N132: 678381 | O132: 714200 | Q132: 942841.9 | R132: 671800
A133: Región 3PUESTO DE TRABAJO MANTENIMIENTO | B133: Mobiliario Escolar | C133: CONJUNTO | D133: Región 3 | E133: PUESTO DE TRABAJO MANTENIMIENTO | F133: Banco de trabajo mantenimiento (1) Estantería de depósito (1) Butaco banco de trabajo mantenimiento (1) | G133: Und | H133: 993650 | J133: 593960 | K133: 696000 | L133: 2657613 | M133: 858166 | N133: 708381 | O133: 775900 | Q133: 1010187.1 | R133: 1429000
A134: Región 1PUESTO DE TRABAJO PREESCOLAR | B134: Mobiliario Escolar | C134: CONJUNTO | D134: Región 1 | E134: PUESTO DE TRABAJO PREESCOLAR | F134: Una (1) mesa preescolar y tres (3) sillas preescolar | G134: Und | H134: 276613 | J134: 237100 | K134: 218000 | L134: 470630 | M134: 256269 | N134: 331000 | O134: 279300 | Q134: 346049.6 | R134: 271400
A135: Región 2PUESTO DE TRABAJO PREESCOLAR | B135: Mobiliario Escolar | C135: CONJUNTO | D135: Región 2 | E135: PUESTO DE TRABAJO PREESCOLAR | F135: Una (1) mesa preescolar y tres (3) sillas preescolar | G135: Und | H135: 283643 | J135: 242100 | K135: 229000 | L135: 543036 | M135: 269083 | N135: 351000 | O135: 285200 | Q135: 352337.7 | R135: 316300
A136: Región 3PUESTO DE TRABAJO PREESCOLAR | B136: Mobiliario Escolar | C136: CONJUNTO | D136: Región 3 | E136: PUESTO DE TRABAJO PREESCOLAR | F136: Una (1) mesa preescolar y tres (3) sillas preescolar | G136: Und | H136: 371344 | J136: 294100 | K136: 245000 | L136: 1002804 | M136: 287021 | N136: 391000 | O136: 316100 | Q136: 377508.3 | R136: 673200
A137: Región 1PUESTO DE TRABAJO RECEPCIÓN | B137: Mobiliario Escolar | C137: CONJUNTO | D137: Región 1 | E137: PUESTO DE TRABAJO RECEPCIÓN | F137: Mesa de atención recepción (1) Silla interlocutora recepción (1) Módulo de cuatro (4) casilleros para servicios generales (1) | G137: Und | H137: 658501 | J137: 564950 | K137: 826000 | L137: 1275251 | M137: 686446 | N137: 953750 | O137: 803056 | Q137: 932349.6 | R137: 684400
A138: Región 2PUESTO DE TRABAJO RECEPCIÓN | B138: Mobiliario Escolar | C138: CONJUNTO | D138: Región 2 | E138: PUESTO DE TRABAJO RECEPCIÓN | F138: Mesa de atención recepción (1) Silla interlocutora recepción (1) Módulo de cuatro (4) casilleros para servicios generales (1) | G138: Und | H138: 668574 | J138: 574950 | K138: 860000 | L138: 1471444 | M138: 720767 | N138: 968750 | O138: 817226.32 | Q138: 949300.3 | R138: 795600
A139: Región 3PUESTO DE TRABAJO RECEPCIÓN | B139: Mobiliario Escolar | C139: CONJUNTO | D139: Región 3 | E139: PUESTO DE TRABAJO RECEPCIÓN | F139: Mesa de atención recepción (1) Silla interlocutora recepción (1) Módulo de cuatro (4) casilleros para servicios generales (1) | G139: Und | H139: 990669 | J139: 803950 | K139: 928000 | L139: 2717264 | M139: 768819 | N139: 998750 | O139: 871146.72 | Q139: 1017101.8 | R139: 1716100
A140: Región 1PUESTO DE TRABAJO RECTORÍA | B140: Mobiliario Escolar | C140: CONJUNTO | D140: Región 1 | E140: PUESTO DE TRABAJO RECTORÍA | F140: Mesa de atención rectoría (1) Silla neumática rectoría con descansa brazos (1) Archivador (1) Mesa para cómputo rector (1) Mesa de juntas rectoría (1) Silla interlocutora rectoría (6) | G140: Und | H140: 3012462 | J140: 3282000 | K140: 2627000 | L140: 4578019 | M140: 2439407 | N140: 2531840 | O140: 2861571 | Q140: 3609198.1 | R140: 2528200
A141: Región 2PUESTO DE TRABAJO RECTORÍA | B141: Mobiliario Escolar | C141: CONJUNTO | D141: Región 2 | E141: PUESTO DE TRABAJO RECTORÍA | F141: Mesa de atención rectoría (1) Silla neumática rectoría con descansa brazos (1) Archivador (1) Mesa para cómputo rector (1) Mesa de juntas rectoría (1) Silla interlocutora rectoría (6) | G141: Und | H141: 3048773 | J141: 3338000 | K141: 2737000 | L141: 5282330 | M141: 2561380 | N141: 2586840 | O141: 2926700 | Q141: 3674823.5 | R141: 2788500
A142: Región 3PUESTO DE TRABAJO RECTORÍA | B142: Mobiliario Escolar | C142: CONJUNTO | D142: Región 3 | E142: PUESTO DE TRABAJO RECTORÍA | F142: Mesa de atención rectoría (1) Silla neumática rectoría con descansa brazos (1) Archivador (1) Mesa para cómputo rector (1) Mesa de juntas rectoría (1) Silla interlocutora rectoría (6) | G142: Und | H142: 3714611 | J142: 4094000 | K142: 2953000 | L142: 9754700 | M142: 2732137 | N142: 2696840 | O142: 3194400 | Q142: 3937310.1 | R142: 5199500
A143: Región 1SALA DE JUNTAS SALA DOCENTE | B143: Mobiliario Escolar | C143: CONJUNTO | D143: Región 1 | E143: SALA DE JUNTAS SALA DOCENTE | F143: Silla interlocutora sala docente (6) Mesa de juntas sala docente (1) | G143: Und | H143: 1314140 | J143: 1391300 | K143: 955000 | L143: 1755058 | M143: 1284375 | N143: 1165840 | O143: 1311000 | Q143: 1544390.9 | R143: 761300
A144: Región 2SALA DE JUNTAS SALA DOCENTE | B144: Mobiliario Escolar | C144: CONJUNTO | D144: Región 2 | E144: SALA DE JUNTAS SALA DOCENTE | F144: Silla interlocutora sala docente (6) Mesa de juntas sala docente (1) | G144: Und | H144: 1295085 | J144: 1407300 | K144: 993000 | L144: 2025066 | M144: 1348595 | N144: 1200840 | O144: 1340000 | Q144: 1572473.5 | R144: 1115500
A145: Región 3SALA DE JUNTAS SALA DOCENTE | B145: Mobiliario Escolar | C145: CONJUNTO | D145: Región 3 | E145: SALA DE JUNTAS SALA DOCENTE | F145: Silla interlocutora sala docente (6) Mesa de juntas sala docente (1) | G145: Und | H145: 1596805 | J145: 1778300 | K145: 1075000 | L145: 3739620 | M145: 1438501 | N145: 1270840 | O145: 1429600 | Q145: 1684793.5 | R145: 2609500
A146: Región 1TRABAJO BIPERSONAL BIBLIOTECA | B146: Mobiliario Escolar | C146: CONJUNTO | D146: Región 1 | E146: TRABAJO BIPERSONAL BIBLIOTECA | F146: Silla neumática giratoria mono concha (2) Cubículo doble de trabajo biblioteca (1) | G146: Und | H146: 584764 | J146: 709700 | K146: 1011000 | L146: 1538515 | M146: 911894 | N146: 958869 | O146: 971500 | Q146: 920092.6 | R146: 725500
A147: Región 2TRABAJO BIPERSONAL BIBLIOTECA | B147: Mobiliario Escolar | C147: CONJUNTO | D147: Región 2 | E147: TRABAJO BIPERSONAL BIBLIOTECA | F147: Silla neumática giratoria mono concha (2) Cubículo doble de trabajo biblioteca (1) | G147: Und | H147: 591209 | J147: 723700 | K147: 1052000 | L147: 1775210 | M147: 957489 | N147: 973869 | O147: 1031200 | Q147: 950469.1 | R147: 779600
A148: Región 3TRABAJO BIPERSONAL BIBLIOTECA | B148: Mobiliario Escolar | C148: CONJUNTO | D148: Región 3 | E148: TRABAJO BIPERSONAL BIBLIOTECA | F148: Silla neumática giratoria mono concha (2) Cubículo doble de trabajo biblioteca (1) | G148: Und | H148: 741212 | J148: 848700 | K148: 1137000 | L148: 3278221 | M148: 1021323 | N148: 1003869 | O148: 1088200 | Q148: 1018360.5 | R148: 1382300
A149: Región 1ARCHIVADOR GRANDE - DOCUMENTACION | B149: Mobiliario Escolar | C149: PRODUCTO | D149: Región 1 | E149: ARCHIVADOR GRANDE - DOCUMENTACION | F149: Archivador grande administrativo | G149: Und | H149: 604010 | J149: 505000 | K149: 605000 | L149: 835042 | M149: 634256 | N149: 593000 | O149: 446100 | Q149: 846003.6 | R149: 405100
A150: Región 2ARCHIVADOR GRANDE - DOCUMENTACION | B150: Mobiliario Escolar | C150: PRODUCTO | D150: Región 2 | E150: ARCHIVADOR GRANDE - DOCUMENTACION | F150: Archivador grande administrativo | G150: Und | H150: 611467 | J150: 515000 | K150: 630000 | L150: 963510 | M150: 665969 | N150: 598000 | O150: 495050 | Q150: 861385.2 | R150: 436200
A151: Región 3ARCHIVADOR GRANDE - DOCUMENTACION | B151: Mobiliario Escolar | C151: PRODUCTO | D151: Región 3 | E151: ARCHIVADOR GRANDE - DOCUMENTACION | F151: Archivador grande administrativo | G151: Und | H151: 730778 | J151: 585000 | K151: 680000 | L151: 1779282 | M151: 710367 | N151: 608000 | O151: 554400 | Q151: 922912.9 | R151: 683000
A152: Región 1ARCHIVADOR REGIÓN 1 UNIDAD | B152: Mobiliario Escolar | C152: PRODUCTO | D152: Región 1 | E152: ARCHIVADOR REGIÓN 1 UNIDAD | F152: ARCHIVADOR REGIÓN 1 UNIDAD | G152: Und | H152: 353393 | J152: 315700 | K152: 303000 | L152: 433256 | M152: 267575 | N152: 229000 | O152: 292600 | Q152: 450368.1 | R152: 245000
A153: Región 2ARCHIVADOR REGIÓN 1 UNIDAD | B153: Mobiliario Escolar | C153: PRODUCTO | D153: Región 2 | E153: ARCHIVADOR REGIÓN 1 UNIDAD | F153: ARCHIVADOR REGIÓN 1 UNIDAD | G153: Und | H153: 359877 | J153: 320700 | K153: 315000 | L153: 499911 | M153: 280954 | N153: 234000 | O153: 314800 | Q153: 458556.8 | R153: 272700
A154: Región 3ARCHIVADOR REGIÓN 1 UNIDAD | B154: Mobiliario Escolar | C154: PRODUCTO | D154: Región 3 | E154: ARCHIVADOR REGIÓN 1 UNIDAD | F154: ARCHIVADOR REGIÓN 1 UNIDAD | G154: Und | H154: 405267 | J154: 380700 | K154: 340000 | L154: 923169 | M154: 299684 | N154: 244000 | O154: 363500 | Q154: 491310.3 | R154: 520000
A155: Región 1BANCO DE TRABAJO MANTENIMIENTO | B155: Mobiliario Escolar | C155: PRODUCTO | D155: Región 1 | E155: BANCO DE TRABAJO MANTENIMIENTO | F155: BANCO DE TRABAJO MANTENIMIENTO | G155: Und | H155: 310704 | J155: 228250 | K155: 388000 | L155: 790797 | M155: 402064 | N155: 357381 | O155: 280000 | Q155: 360340.5 | R155: 273900
A156: Región 2BANCO DE TRABAJO MANTENIMIENTO | B156: Mobiliario Escolar | C156: PRODUCTO | D156: Región 2 | E156: BANCO DE TRABAJO MANTENIMIENTO | F156: BANCO DE TRABAJO MANTENIMIENTO | G156: Und | H156: 310704 | J156: 233250 | K156: 404000 | L156: 912458 | M156: 422167 | N156: 362381 | O156: 285000 | Q156: 366892.5 | R156: 318900
A157: Región 3BANCO DE TRABAJO MANTENIMIENTO | B157: Mobiliario Escolar | C157: PRODUCTO | D157: Región 3 | E157: BANCO DE TRABAJO MANTENIMIENTO | F157: BANCO DE TRABAJO MANTENIMIENTO | G157: Und | H157: 429428 | J157: 278250 | K157: 436000 | L157: 1685005 | M157: 450311 | N157: 372381 | O157: 303000 | Q157: 393099.2 | R157: 687000
A158: Región 1BIOMBO | B158: Mobiliario Escolar | C158: PRODUCTO | D158: Región 1 | E158: BIOMBO | F158: BIOMBO | G158: Und | H158: 359072 | J158: 592000 | K158: 242000 | L158: 2097256 | M158: 802409 | N158: 968200 | O158: 680300 | Q158: 759819.95 | R158: 255000
A159: Región 2BIOMBO | B159: Mobiliario Escolar | C159: PRODUCTO | D159: Región 2 | E159: BIOMBO | F159: BIOMBO | G159: Und | H159: 359072 | J159: 597000 | K159: 252000 | L159: 2419911 | M159: 842530 | N159: 973200 | O159: 692500 | Q159: 773634.9 | R159: 287900
A160: Región 3BIOMBO | B160: Mobiliario Escolar | C160: PRODUCTO | D160: Región 3 | E160: BIOMBO | F160: BIOMBO | G160: Und | H160: 520889 | J160: 612000 | K160: 272000 | L160: 4468769 | M160: 898698 | N160: 983200 | O160: 715100 | Q160: 828894.7 | R160: 482500
A161: Región 1BUTACO AUXILIAR BIBLIOTECA | B161: Mobiliario Escolar | C161: PRODUCTO | D161: Región 1 | E161: BUTACO AUXILIAR BIBLIOTECA | F161: BUTACO AUXILIAR BIBLIOTECA | G161: Und | H161: 30934 | J161: 66050 | K161: 28000 | L161: 106605 | M161: 114823 | N161: 77000 | O161: 38900 | Q161: 63286.6 | R161: 56600
A162: Región 2BUTACO AUXILIAR BIBLIOTECA | B162: Mobiliario Escolar | C162: PRODUCTO | D162: Región 2 | E162: BUTACO AUXILIAR BIBLIOTECA | F162: BUTACO AUXILIAR BIBLIOTECA | G162: Und | H162: 30934 | J162: 68050 | K162: 29000 | L162: 123006 | M162: 120564 | N162: 82000 | O162: 40100 | Q162: 64437.1 | R162: 76500
A163: Región 3BUTACO AUXILIAR BIBLIOTECA | B163: Mobiliario Escolar | C163: PRODUCTO | D163: Región 3 | E163: BUTACO AUXILIAR BIBLIOTECA | F163: BUTACO AUXILIAR BIBLIOTECA | G163: Und | H163: 45729 | J163: 93050 | K163: 31000 | L163: 227151 | M163: 128602 | N163: 92000 | O163: 44900 | Q163: 69040.4 | R163: 225500
A164: Región 1BUTACO BANCO DE TRABAJO MANTENIMIENTO | B164: Mobiliario Escolar | C164: PRODUCTO | D164: Región 1 | E164: BUTACO BANCO DE TRABAJO MANTENIMIENTO | F164: BUTACO BANCO DE TRABAJO MANTENIMIENTO | G164: Und | H164: 48300 | J164: 55410 | K164: 37000 | L164: 142490 | M164: 60149 | N164: 77000 | O164: 76500 | Q164: 98922.2 | R164: 70700
A165: Región 2BUTACO BANCO DE TRABAJO MANTENIMIENTO | B165: Mobiliario Escolar | C165: PRODUCTO | D165: Región 2 | E165: BUTACO BANCO DE TRABAJO MANTENIMIENTO | F165: BUTACO BANCO DE TRABAJO MANTENIMIENTO | G165: Und | H165: 48300 | J165: 58410 | K165: 38000 | L165: 164412 | M165: 63156 | N165: 82000 | O165: 77900 | Q165: 100721.4 | R165: 85600
A166: Región 3BUTACO BANCO DE TRABAJO MANTENIMIENTO | B166: Mobiliario Escolar | C166: PRODUCTO | D166: Región 3 | E166: BUTACO BANCO DE TRABAJO MANTENIMIENTO | F166: BUTACO BANCO DE TRABAJO MANTENIMIENTO | G166: Und | H166: 69000 | J166: 81410 | K166: 41000 | L166: 303614 | M166: 67366 | N166: 92000 | O166: 83100 | Q166: 107915.6 | R166: 273500
A167: Región 1BUTACO DE LABORATORIO INTEGRADO FÍSICA Y QUÍMICA | B167: Mobiliario Escolar | C167: PRODUCTO | D167: Región 1 | E167: BUTACO DE LABORATORIO INTEGRADO FÍSICA Y QUÍMICA | F167: Butaco de laboratorio integrado física y química | G167: Und | H167: 48300 | J167: 57350 | K167: 37000 | L167: 142490 | M167: 60149 | N167: 77000 | O167: 64800 | Q167: 98922.2 | R167: 70700
A168: Región 2BUTACO DE LABORATORIO INTEGRADO FÍSICA Y QUÍMICA | B168: Mobiliario Escolar | C168: PRODUCTO | D168: Región 2 | E168: BUTACO DE LABORATORIO INTEGRADO FÍSICA Y QUÍMICA | F168: Butaco de laboratorio integrado física y química | G168: Und | H168: 48300 | J168: 60350 | K168: 38000 | L168: 164412 | M168: 63156 | N168: 82000 | O168: 65900 | Q168: 100721.4 | R168: 85600
A169: Región 3BUTACO DE LABORATORIO INTEGRADO FÍSICA Y QUÍMICA | B169: Mobiliario Escolar | C169: PRODUCTO | D169: Región 3 | E169: BUTACO DE LABORATORIO INTEGRADO FÍSICA Y QUÍMICA | F169: Butaco de laboratorio integrado física y química | G169: Und | H169: 69000 | J169: 83350 | K169: 41000 | L169: 303614 | M169: 67366 | N169: 92000 | O169: 72700 | Q169: 107915.6 | R169: 273500
A170: Región 1BUTACO LABORATORIO PRIMARIA CIENCIAS Y ARTES | B170: Mobiliario Escolar | C170: PRODUCTO | D170: Región 1 | E170: BUTACO LABORATORIO PRIMARIA CIENCIAS Y ARTES | F170: BUTACO LABORATORIO PRIMARIA CIENCIAS Y ARTES | G170: Und | H170: 48300 | J170: 55410 | K170: 37000 | L170: 139200 | M170: 57188 | N170: 77000 | O170: 64800 | Q170: 97808.1 | R170: 68400
A171: Región 2BUTACO LABORATORIO PRIMARIA CIENCIAS Y ARTES | B171: Mobiliario Escolar | C171: PRODUCTO | D171: Región 2 | E171: BUTACO LABORATORIO PRIMARIA CIENCIAS Y ARTES | F171: BUTACO LABORATORIO PRIMARIA CIENCIAS Y ARTES | G171: Und | H171: 48300 | J171: 58410 | K171: 38000 | L171: 160616 | M171: 60047 | N171: 82000 | O171: 65900 | Q171: 99586.5 | R171: 80900
A172: Región 3BUTACO LABORATORIO PRIMARIA CIENCIAS Y ARTES | B172: Mobiliario Escolar | C172: PRODUCTO | D172: Región 3 | E172: BUTACO LABORATORIO PRIMARIA CIENCIAS Y ARTES | F172: BUTACO LABORATORIO PRIMARIA CIENCIAS Y ARTES | G172: Und | H172: 69000 | J172: 81410 | K172: 41000 | L172: 296603 | M172: 64050 | N172: 92000 | O172: 72700 | Q172: 106700.1 | R172: 263500
A173: Región 1CASILLERO ALUMNOS ALMACENAR OBJETOS ALUMNOS | B173: Mobiliario Escolar | C173: PRODUCTO | D173: Región 1 | E173: CASILLERO ALUMNOS ALMACENAR OBJETOS ALUMNOS | F173: Módulo 10 casilleros alumnos | G173: Und | H173: 379665 | J173: 476500 | K173: 530000 | L173: 920660 | M173: 558071 | N173: 726000 | O173: 455288.4 | Q173: 493808.9 | R173: 331400
A174: Región 2CASILLERO ALUMNOS ALMACENAR OBJETOS ALUMNOS | B174: Mobiliario Escolar | C174: PRODUCTO | D174: Región 2 | E174: CASILLERO ALUMNOS ALMACENAR OBJETOS ALUMNOS | F174: Módulo 10 casilleros alumnos | G174: Und | H174: 393471 | J174: 486500 | K174: 552000 | L174: 1062300 | M174: 585975 | N174: 731000 | O174: 457334.64 | Q174: 502786.7 | R174: 344400
A175: Región 3CASILLERO ALUMNOS ALMACENAR OBJETOS ALUMNOS | B175: Mobiliario Escolar | C175: PRODUCTO | D175: Región 3 | E175: CASILLERO ALUMNOS ALMACENAR OBJETOS ALUMNOS | F175: Módulo 10 casilleros alumnos | G175: Und | H175: 614367 | J175: 786500 | K175: 596000 | L175: 1961714 | M175: 625040 | N175: 741000 | O175: 472340.4 | Q175: 538700.5 | R175: 433600
A176: Región 1CUBÍCULO DOBLE DE TRABAJO BIBLIOTECA | B176: Mobiliario Escolar | C176: PRODUCTO | D176: Región 1 | E176: CUBÍCULO DOBLE DE TRABAJO BIBLIOTECA | F176: CUBÍCULO DOBLE DE TRABAJO BIBLIOTECA | G176: Und | H176: 364764 | J176: 383600 | K176: 371000 | L176: 1069345 | M176: 483738 | N176: 588869 | O176: 590500 | Q176: 602526.6 | R176: 380900
A177: Región 2CUBÍCULO DOBLE DE TRABAJO BIBLIOTECA | B177: Mobiliario Escolar | C177: PRODUCTO | D177: Región 2 | E177: CUBÍCULO DOBLE DE TRABAJO BIBLIOTECA | F177: CUBÍCULO DOBLE DE TRABAJO BIBLIOTECA | G177: Und | H177: 371209 | J177: 393600 | K177: 386000 | L177: 1233860 | M177: 507925 | N177: 593869 | O177: 610400 | Q177: 627129.1 | R177: 403000
A178: Región 3CUBÍCULO DOBLE DE TRABAJO BIBLIOTECA | B178: Mobiliario Escolar | C178: PRODUCTO | D178: Región 3 | E178: CUBÍCULO DOBLE DE TRABAJO BIBLIOTECA | F178: CUBÍCULO DOBLE DE TRABAJO BIBLIOTECA | G178: Und | H178: 487212 | J178: 468600 | K178: 417000 | L178: 2278527 | M178: 541787 | N178: 603869 | O178: 620400 | Q178: 671924.5 | R178: 603900
A179: Región 1CUBÍCULO DOBLE DE TRABAJO SALA DOCENTE | B179: Mobiliario Escolar | C179: PRODUCTO | D179: Región 1 | E179: CUBÍCULO DOBLE DE TRABAJO SALA DOCENTE | F179: CUBÍCULO DOBLE DE TRABAJO SALA DOCENTE | G179: Und | H179: 359609 | J179: 383600 | K179: 371000 | L179: 1069345 | M179: 483738 | N179: 588869 | O179: 590500 | Q179: 602526.6 | R179: 380900
A180: Región 2CUBÍCULO DOBLE DE TRABAJO SALA DOCENTE | B180: Mobiliario Escolar | C180: PRODUCTO | D180: Región 2 | E180: CUBÍCULO DOBLE DE TRABAJO SALA DOCENTE | F180: CUBÍCULO DOBLE DE TRABAJO SALA DOCENTE | G180: Und | H180: 366053 | J180: 393600 | K180: 386000 | L180: 1233860 | M180: 507925 | N180: 593869 | O180: 610400 | Q180: 627129.1 | R180: 403000
A181: Región 3CUBÍCULO DOBLE DE TRABAJO SALA DOCENTE | B181: Mobiliario Escolar | C181: PRODUCTO | D181: Región 3 | E181: CUBÍCULO DOBLE DE TRABAJO SALA DOCENTE | F181: CUBÍCULO DOBLE DE TRABAJO SALA DOCENTE | G181: Und | H181: 482056 | J181: 468600 | K181: 417000 | L181: 2278527 | M181: 541787 | N181: 603869 | O181: 620400 | Q181: 671924.5 | R181: 603900
A182: Región 1CUERPO CASILLERO DOCENTE ALMACENAMIENTO OBJETOS DOCENTES | B182: Mobiliario Escolar | C182: PRODUCTO | D182: Región 1 | E182: CUERPO CASILLERO DOCENTE ALMACENAMIENTO OBJETOS DOCENTES | F182: Módulo 10 casilleros docentes | G182: Und | H182: 510822 | J182: 530000 | K182: 726000 | L182: 1157530 | M182: 558071 | N182: 726000 | O182: 631833.44 | Q182: 683473.7 | R182: 460700
A183: Región 2CUERPO CASILLERO DOCENTE ALMACENAMIENTO OBJETOS DOCENTES | B183: Mobiliario Escolar | C183: PRODUCTO | D183: Región 2 | E183: CUERPO CASILLERO DOCENTE ALMACENAMIENTO OBJETOS DOCENTES | F183: Módulo 10 casilleros docentes | G183: Und | H183: 524628 | J183: 540000 | K183: 756000 | L183: 1335612 | M183: 585975 | N183: 731000 | O183: 647634.96 | Q183: 695900.4 | R183: 485300
A184: Región 3CUERPO CASILLERO DOCENTE ALMACENAMIENTO OBJETOS DOCENTES | B184: Mobiliario Escolar | C184: PRODUCTO | D184: Región 3 | E184: CUERPO CASILLERO DOCENTE ALMACENAMIENTO OBJETOS DOCENTES | F184: Módulo 10 casilleros docentes | G184: Und | H184: 842166 | J184: 835000 | K184: 816000 | L184: 2466430 | M184: 625040 | N184: 741000 | O184: 662186 | Q184: 745607.2 | R184: 686200
A185: Región 1ESTANTE DE BIBLIOTECA 1,30 MTS ADMINISTRACION Y RESGUARDO DE TEXTOS EN LA BIBLIOTECA | B185: Mobiliario Escolar | C185: PRODUCTO | D185: Región 1 | E185: ESTANTE DE BIBLIOTECA 1,30 MTS ADMINISTRACION Y RESGUARDO DE TEXTOS EN LA BIBLIOTECA | F185: Módulo de biblioteca de 1,30 mts. | G185: Und | H185: 475108 | J185: 874500 | K185: 399000 | L185: 1217980 | M185: 750912 | N185: 825000 | O185: 683330.48 | Q185: 771813.9 | R185: 427100
A186: Región 2ESTANTE DE BIBLIOTECA 1,30 MTS ADMINISTRACION Y RESGUARDO DE TEXTOS EN LA BIBLIOTECA | B186: Mobiliario Escolar | C186: PRODUCTO | D186: Región 2 | E186: ESTANTE DE BIBLIOTECA 1,30 MTS ADMINISTRACION Y RESGUARDO DE TEXTOS EN LA BIBLIOTECA | F186: Módulo de biblioteca de 1,30 mts. | G186: Und | H186: 483027 | J186: 894500 | K186: 415000 | L186: 1405362 | M186: 788458 | N186: 830000 | O186: 689923.92 | Q186: 785846.1 | R186: 477500
A187: Región 3ESTANTE DE BIBLIOTECA 1,30 MTS ADMINISTRACION Y RESGUARDO DE TEXTOS EN LA BIBLIOTECA | B187: Mobiliario Escolar | C187: PRODUCTO | D187: Región 3 | E187: ESTANTE DE BIBLIOTECA 1,30 MTS ADMINISTRACION Y RESGUARDO DE TEXTOS EN LA BIBLIOTECA | F187: Módulo de biblioteca de 1,30 mts. | G187: Und | H187: 644563 | J187: 1274500 | K187: 448000 | L187: 2595235 | M187: 841022 | N187: 840000 | O187: 739147.36 | Q187: 841978.8 | R187: 703000
A188: Región 1ESTANTE DE DEPOSITO | B188: Mobiliario Escolar | C188: PRODUCTO | D188: Región 1 | E188: ESTANTE DE DEPOSITO | F188: Estantería de depósito | G188: Und | H188: 243238 | J188: 190300 | K188: 195000 | L188: 313968 | M188: 304008 | N188: 229000 | O188: 347900 | Q188: 466741.6 | R188: 249000
A189: Región 2ESTANTE DE DEPOSITO | B189: Mobiliario Escolar | C189: PRODUCTO | D189: Región 2 | E189: ESTANTE DE DEPOSITO | F189: Estantería de depósito | G189: Und | H189: 244720 | J189: 192300 | K189: 203000 | L189: 362271 | M189: 319209 | N189: 234000 | O189: 351300 | Q189: 475228 | R189: 267300
A190: Región 3ESTANTE DE DEPOSITO | B190: Mobiliario Escolar | C190: PRODUCTO | D190: Región 3 | E190: ESTANTE DE DEPOSITO | F190: Estantería de depósito | G190: Und | H190: 495222 | J190: 234300 | K190: 219000 | L190: 668994 | M190: 340489 | N190: 244000 | O190: 389800 | Q190: 509172.3 | R190: 468500
A191: Región 1MALETERO - SEGURIDAD EN LA BIBLIOTECA | B191: Mobiliario Escolar | C191: PRODUCTO | D191: Región 1 | E191: MALETERO - SEGURIDAD EN LA BIBLIOTECA | F191: Maletero biblioteca | G191: Und | H191: 274218 | J191: 306000 | K191: 218000 | L191: 467228 | M191: 289662 | N191: 775000 | O191: 255400 | Q191: 319004.4 | R191: 157300
A192: Región 2MALETERO - SEGURIDAD EN LA BIBLIOTECA | B192: Mobiliario Escolar | C192: PRODUCTO | D192: Región 2 | E192: MALETERO - SEGURIDAD EN LA BIBLIOTECA | F192: Maletero biblioteca | G192: Und | H192: 281629 | J192: 311000 | K192: 227000 | L192: 539109 | M192: 304145 | N192: 780000 | O192: 259900 | Q192: 324803.7 | R192: 168500
A193: Región 3MALETERO - SEGURIDAD EN LA BIBLIOTECA | B193: Mobiliario Escolar | C193: PRODUCTO | D193: Región 3 | E193: MALETERO - SEGURIDAD EN LA BIBLIOTECA | F193: Maletero biblioteca | G193: Und | H193: 398727 | J193: 371000 | K193: 245000 | L193: 995555 | M193: 324422 | N193: 790000 | O193: 277700 | Q193: 348004.8 | R193: 213400
A194: =D194&E194 -> Región 1MESA AUXILIAR PUESTO DE TRABAJO PREESCOLAR | B194: Mobiliario Escolar | C194: PRODUCTO | D194: Región 1 | E194: MESA AUXILIAR PUESTO DE TRABAJO PREESCOLAR | F194: MESA AUXILIAR PUESTO DE TRABAJO PREESCOLAR | G194: Und | H194: 145614 | J194: 153500 | K194: 110000 | L194: 250401 | M194: 214768 | N194: 195000 | O194: 170800 | Q194: 214623.5 | R194: 142600
A195: Región 2MESA AUXILIAR PUESTO DE TRABAJO PREESCOLAR | B195: Mobiliario Escolar | C195: PRODUCTO | D195: Región 2 | E195: MESA AUXILIAR PUESTO DE TRABAJO PREESCOLAR | F195: MESA AUXILIAR PUESTO DE TRABAJO PREESCOLAR | G195: Und | H195: 146870 | J195: 155500 | K195: 115000 | L195: 288924 | M195: 225506 | N195: 200000 | O195: 172500 | Q195: 218526.1 | R195: 163700
A196: Región 3MESA AUXILIAR PUESTO DE TRABAJO PREESCOLAR | B196: Mobiliario Escolar | C196: PRODUCTO | D196: Región 3 | E196: MESA AUXILIAR PUESTO DE TRABAJO PREESCOLAR | F196: MESA AUXILIAR PUESTO DE TRABAJO PREESCOLAR | G196: Und | H196: 195916 | J196: 185500 | K196: 124000 | L196: 533546 | M196: 240540 | N196: 210000 | O196: 191200 | Q196: 234135.2 | R196: 259300
A197: Región 1MESA AUXILIAR SALA DOCENTE | B197: Mobiliario Escolar | C197: PRODUCTO | D197: Región 1 | E197: MESA AUXILIAR SALA DOCENTE | F197: MESA AUXILIAR SALA DOCENTE | G197: Und | H197: 120508 | J197: 196300 | K197: 75000 | L197: 211030 | M197: 163228 | N197: 173627 | O197: 129600 | Q197: 158715.7 | R197: 89400
A198: Región 2MESA AUXILIAR SALA DOCENTE | B198: Mobiliario Escolar | C198: PRODUCTO | D198: Región 2 | E198: MESA AUXILIAR SALA DOCENTE | F198: MESA AUXILIAR SALA DOCENTE | G198: Und | H198: 121764 | J198: 204300 | K198: 78000 | L198: 243497 | M198: 171389 | N198: 178627 | O198: 132500 | Q198: 161600.4 | R198: 138000
A199: Región 3MESA AUXILIAR SALA DOCENTE | B199: Mobiliario Escolar | C199: PRODUCTO | D199: Región 3 | E199: MESA AUXILIAR SALA DOCENTE | F199: MESA AUXILIAR SALA DOCENTE | G199: Und | H199: 157248 | J199: 284300 | K199: 84000 | L199: 449657 | M199: 182815 | N199: 188627 | O199: 137800 | Q199: 173144.4 | R199: 339000
A200: Región 1MESA DE ATENCIÓN RECEPCIÓN | B200: Mobiliario Escolar | C200: PRODUCTO | D200: Región 1 | E200: MESA DE ATENCIÓN RECEPCIÓN | F200: MESA DE ATENCIÓN RECEPCIÓN | G200: Und | H200: 296362 | J200: 316000 | K200: 424000 | L200: 587061 | M200: 288323 | N200: 355000 | O200: 420800 | Q200: 547042.6 | R200: 322200
... 295 more rows
